Department Family,Entity,Date Paid,Expense Type,Expense Area,Supplier,Transaction Number,Amount (�),Supplier VAT Registration Number
BEIS,Met Office,2023-02-17,06 ACCOMMODATION,CHIEF FINANCIAL OFFICER,ABOVE THE REST COMMERCIAL CLEANING LTD,476534,41,166969348
BEIS,Met Office,2023-02-14,06 ACCOMMODATION,CHIEF FINANCIAL OFFICER,ABOVE THE REST COMMERCIAL CLEANING LTD,476533,565,166969348
BEIS,Met Office,2023-02-22,06 ACCOMMODATION,CHIEF FINANCIAL OFFICER,ABOVE THE REST COMMERCIAL CLEANING LTD,476631,565,166969348
BEIS,Met Office,2023-02-15,11 SERVICES,CHIEF FINANCIAL OFFICER,ACTIVE PEST MANAGEMENT,476548,86.1,791419116
BEIS,Met Office,2023-02-16,11 SERVICES,CHIEF FINANCIAL OFFICER,ADT FIRE AND SECURITY PLC,476575,654.7,413633086
BEIS,Met Office,2023-02-13,SOFTWARE LICENCES,CHIEF FINANCIAL OFFICER,ADVANCED BUSINESS SOLUTIONS LTD,475733,-11475,927547983
BEIS,Met Office,2023-02-13,SOFTWARE LICENCES,CHIEF FINANCIAL OFFICER,ADVANCED BUSINESS SOLUTIONS LTD,472756,11475,927547983
BEIS,Met Office,2023-02-13,SOFTWARE LICENCES,CHIEF FINANCIAL OFFICER,ADVANCED BUSINESS SOLUTIONS LTD,472967,11475,927547983
BEIS,Met Office,2023-02-17,03 STAFF COSTS T&S,CHIEF FINANCIAL OFFICER,ALLSTAR BUSINESS SOLUTIONS LTD,476633,3877.42,747880191
BEIS,Met Office,2023-02-02,03 STAFF COSTS T&S,CHIEF FINANCIAL OFFICER,ALLSTAR BUSINESS SOLUTIONS LTD,476059,4340.37,747880191
BEIS,Met Office,2023-02-09,13 MISCELLANEOUS,CHIEF FINANCIAL OFFICER,ANTRIM HILLS SPRING WATER CO LTD,476259,27,517173455
BEIS,Met Office,2023-02-13,11 SERVICES,CHIEF FINANCIAL OFFICER,ANVIL MOBILE LIMITED,476457,198.15,981686175
BEIS,Met Office,2023-02-07,11 SERVICES,CHIEF FINANCIAL OFFICER,APPLE CENTRAL TAXIS,476121,1160.5,449238720
BEIS,Met Office,2023-02-10,13 MISCELLANEOUS,CHIEF FINANCIAL OFFICER,ARTHUR J. GALLAGHER INSURANCE BROKERS LIMITED,476379,-18741.4,GB484746209
BEIS,Met Office,2023-02-10,11 SERVICES,CHIEF FINANCIAL OFFICER,Ashfords Llp,476258,1533.6,844502439
BEIS,Met Office,2023-02-15,11 SERVICES,CHIEF FINANCIAL OFFICER,BABBLE CLOUD LIMITED,476539,3670.41,GB206270049
BEIS,Met Office,2023-02-10,13 MISCELLANEOUS,CHIEF FINANCIAL OFFICER,BANNER GROUP LIMITED,476311,16.2,GB391085740
BEIS,Met Office,2023-02-10,13 MISCELLANEOUS,CHIEF FINANCIAL OFFICER,BANNER GROUP LIMITED,476310,49.55,GB391085740
BEIS,Met Office,2023-02-28,13 MISCELLANEOUS,CHIEF FINANCIAL OFFICER,BANNER GROUP LIMITED,476833,142.94,GB391085740
BEIS,Met Office,2023-02-07,04 CONTRACTORS,CHIEF FINANCIAL OFFICER,BEIS,476209,29313.57,888825550
BEIS,Met Office,2023-02-01,06 ACCOMMODATION,CHIEF FINANCIAL OFFICER,Belfast International Airport Ltd,475959,260,617777601
BEIS,Met Office,2023-02-07,06 ACCOMMODATION,CHIEF FINANCIAL OFFICER,BIDVEST NOONAN UK LTD,475963,1,GB847176988
BEIS,Met Office,2023-02-07,06 ACCOMMODATION,CHIEF FINANCIAL OFFICER,BIDVEST NOONAN UK LTD,475964,1,GB847176988
BEIS,Met Office,2023-02-07,06 ACCOMMODATION,CHIEF FINANCIAL OFFICER,BIDVEST NOONAN UK LTD,475964,456.31,GB847176988
BEIS,Met Office,2023-02-07,06 ACCOMMODATION,CHIEF FINANCIAL OFFICER,BIDVEST NOONAN UK LTD,475963,1012.83,GB847176988
BEIS,Met Office,2023-02-14,06 ACCOMMODATION,CHIEF FINANCIAL OFFICER,Biffa Waste Services Ltd,476530,75,537911627
BEIS,Met Office,2023-02-17,11 SERVICES,CHIEF FINANCIAL OFFICER,BOYES TURNER,476201,3500,118920317
BEIS,Met Office,2023-02-13,11 SERVICES,CHIEF FINANCIAL OFFICER,BT CONFERENCING,476426,12.57,245719348
BEIS,Met Office,2023-02-22,11 SERVICES,CHIEF FINANCIAL OFFICER,BT GLOBAL SERVICES,476650,773.6,245719348
BEIS,Met Office,2023-02-28,11 SERVICES,CHIEF FINANCIAL OFFICER,BT GLOBAL SERVICES,476769,17728.87,245719348
BEIS,Met Office,2023-02-16,11 SERVICES,CHIEF FINANCIAL OFFICER,BUILDING PROTECTION SYSTEMS (NI) LTD,476578,74.46,366309834
BEIS,Met Office,2023-02-16,06 ACCOMMODATION,CHIEF FINANCIAL OFFICER,BUSINESS SUPPORT CENTRE LTD,476581,-53.35,927365208
BEIS,Met Office,2023-02-08,06 ACCOMMODATION,CHIEF FINANCIAL OFFICER,BUSINESS SUPPORT CENTRE LTD,476233,53.12,927365208
BEIS,Met Office,2023-02-10,06 ACCOMMODATION,CHIEF FINANCIAL OFFICER,BUSINESS SUPPORT CENTRE LTD,476331,53.35,927365208
BEIS,Met Office,2023-02-01,06 ACCOMMODATION,CHIEF FINANCIAL OFFICER,CALOR GAS LIMITED,475988,19.61,207610984
BEIS,Met Office,2023-02-01,06 ACCOMMODATION,CHIEF FINANCIAL OFFICER,CALOR GAS LIMITED,475989,34.25,207610984
BEIS,Met Office,2023-02-01,06 ACCOMMODATION,CHIEF FINANCIAL OFFICER,CALOR GAS LIMITED,475990,34.25,207610984
BEIS,Met Office,2023-02-01,06 ACCOMMODATION,CHIEF FINANCIAL OFFICER,CALOR GAS LIMITED,475991,34.25,207610984
BEIS,Met Office,2023-02-01,06 ACCOMMODATION,CHIEF FINANCIAL OFFICER,CALOR GAS LIMITED,475993,34.25,207610984
BEIS,Met Office,2023-02-01,06 ACCOMMODATION,CHIEF FINANCIAL OFFICER,CALOR GAS LIMITED,475994,34.25,207610984
BEIS,Met Office,2023-02-01,06 ACCOMMODATION,CHIEF FINANCIAL OFFICER,CALOR GAS LIMITED,475995,34.25,207610984
BEIS,Met Office,2023-02-01,06 ACCOMMODATION,CHIEF FINANCIAL OFFICER,CALOR GAS LIMITED,475992,49.18,207610984
BEIS,Met Office,2023-02-01,06 ACCOMMODATION,CHIEF FINANCIAL OFFICER,CALOR GAS LIMITED,475996,551.35,207610984
BEIS,Met Office,2023-02-16,13 MISCELLANEOUS,CHIEF FINANCIAL OFFICER,CANON UK LTD,476596,-317.87,523797128
BEIS,Met Office,2023-02-10,13 MISCELLANEOUS,CHIEF FINANCIAL OFFICER,CANON UK LTD,476377,0.36,523797128
BEIS,Met Office,2023-02-16,13 MISCELLANEOUS,CHIEF FINANCIAL OFFICER,CANON UK LTD,476596,7.64,523797128
BEIS,Met Office,2023-02-16,13 MISCELLANEOUS,CHIEF FINANCIAL OFFICER,CANON UK LTD,476596,20.1,523797128
BEIS,Met Office,2023-02-16,13 MISCELLANEOUS,CHIEF FINANCIAL OFFICER,CANON UK LTD,476596,58.49,523797128
BEIS,Met Office,2023-02-16,13 MISCELLANEOUS,CHIEF FINANCIAL OFFICER,CANON UK LTD,476596,89.74,523797128
BEIS,Met Office,2023-02-16,13 MISCELLANEOUS,CHIEF FINANCIAL OFFICER,CANON UK LTD,476596,89.74,523797128
BEIS,Met Office,2023-02-16,13 MISCELLANEOUS,CHIEF FINANCIAL OFFICER,CANON UK LTD,476596,89.74,523797128
BEIS,Met Office,2023-02-16,13 MISCELLANEOUS,CHIEF FINANCIAL OFFICER,CANON UK LTD,476596,3109.12,523797128
BEIS,Met Office,2023-02-03,06 ACCOMMODATION,CHIEF FINANCIAL OFFICER,CARDIFF EXECUTIVE CENTRE LTD,476018,2470,864497378
BEIS,Met Office,2023-02-07,06 ACCOMMODATION,CHIEF FINANCIAL OFFICER,CBRE LTD,476184,6000,GB 736 3179 23
BEIS,Met Office,2023-02-14,06 ACCOMMODATION,CHIEF FINANCIAL OFFICER,CBRE MANAGED SERVICES LTD,475304,1,853936883
BEIS,Met Office,2023-02-13,06 ACCOMMODATION,CHIEF FINANCIAL OFFICER,CBRE MANAGED SERVICES LTD,475911,1,853936883
BEIS,Met Office,2023-02-01,06 ACCOMMODATION,CHIEF FINANCIAL OFFICER,CBRE MANAGED SERVICES LTD,475912,1,853936883
BEIS,Met Office,2023-02-24,06 ACCOMMODATION,CHIEF FINANCIAL OFFICER,CBRE MANAGED SERVICES LTD,476775,2648.72,853936883
BEIS,Met Office,2023-02-28,PLANT AND EQUIPMENT,CHIEF FINANCIAL OFFICER,CBRE MANAGED SERVICES LTD,476818,8890.74,853936883
BEIS,Met Office,2023-02-24,06 ACCOMMODATION,CHIEF FINANCIAL OFFICER,CBRE MANAGED SERVICES LTD,476777,9128.66,853936883
BEIS,Met Office,2023-02-13,06 ACCOMMODATION,CHIEF FINANCIAL OFFICER,CBRE MANAGED SERVICES LTD,475911,9322.42,853936883
BEIS,Met Office,2023-02-22,FIXTURE & FITTINGS,CHIEF FINANCIAL OFFICER,CBRE MANAGED SERVICES LTD,476705,10326.41,853936883
BEIS,Met Office,2023-02-22,11 SERVICES,CHIEF FINANCIAL OFFICER,CBRE MANAGED SERVICES LTD,476702,12049.35,853936883
BEIS,Met Office,2023-02-14,06 ACCOMMODATION,CHIEF FINANCIAL OFFICER,CBRE MANAGED SERVICES LTD,475304,18397.73,853936883
BEIS,Met Office,2023-02-22,06 ACCOMMODATION,CHIEF FINANCIAL OFFICER,CBRE MANAGED SERVICES LTD,476723,19820.16,853936883
BEIS,Met Office,2023-02-24,06 ACCOMMODATION,CHIEF FINANCIAL OFFICER,CBRE MANAGED SERVICES LTD,476775,25160.62,853936883
BEIS,Met Office,2023-02-01,06 ACCOMMODATION,CHIEF FINANCIAL OFFICER,CBRE MANAGED SERVICES LTD,475912,27808.34,853936883
BEIS,Met Office,2023-02-22,06 ACCOMMODATION,CHIEF FINANCIAL OFFICER,CBRE MANAGED SERVICES LTD,476703,149176.92,853936883
BEIS,Met Office,2023-02-22,08 SOFTWARE LICENCES,CHIEF FINANCIAL OFFICER,CEMAR,476676,850,915042161
BEIS,Met Office,2023-02-24,06 ACCOMMODATION,CHIEF FINANCIAL OFFICER,Devon County Council,476778,104163,142208113
BEIS,Met Office,2023-02-07,13 MISCELLANEOUS,CHIEF FINANCIAL OFFICER,DWYFOR COFFEE COMPANY LTD,476166,16.3,559811116
BEIS,Met Office,2023-02-07,13 MISCELLANEOUS,CHIEF FINANCIAL OFFICER,EAST ANGLIAN WATER COOLER CO,476183,20.3,676668178
BEIS,Met Office,2023-02-28,06 ACCOMMODATION,CHIEF FINANCIAL OFFICER,EDF ENERGY CUSTOMERS PLC,475153,-169184.53,523041202
BEIS,Met Office,2023-02-28,06 ACCOMMODATION,CHIEF FINANCIAL OFFICER,EDF ENERGY CUSTOMERS PLC,475920,-168570.24,523041202
BEIS,Met Office,2023-02-28,06 ACCOMMODATION,CHIEF FINANCIAL OFFICER,EDF ENERGY CUSTOMERS PLC,475922,-144241.04,523041202
BEIS,Met Office,2023-02-28,06 ACCOMMODATION,CHIEF FINANCIAL OFFICER,EDF ENERGY CUSTOMERS PLC,476765,132395.02,523041202
BEIS,Met Office,2023-02-28,06 ACCOMMODATION,CHIEF FINANCIAL OFFICER,EDF ENERGY CUSTOMERS PLC,475151,140869.08,523041202
BEIS,Met Office,2023-02-28,06 ACCOMMODATION,CHIEF FINANCIAL OFFICER,EDF ENERGY CUSTOMERS PLC,475923,143806.37,523041202
BEIS,Met Office,2023-02-28,06 ACCOMMODATION,CHIEF FINANCIAL OFFICER,EDF ENERGY CUSTOMERS PLC,476764,147084.75,523041202
BEIS,Met Office,2023-02-28,06 ACCOMMODATION,CHIEF FINANCIAL OFFICER,EDF ENERGY CUSTOMERS PLC,475921,166296.07,523041202
BEIS,Met Office,2023-02-01,11 SERVICES,CHIEF FINANCIAL OFFICER,EIR,24613,54.59,4736919B
BEIS,Met Office,2023-02-20,03 STAFF COSTS T&S,CHIEF FINANCIAL OFFICER,ENTERPRISE RENT A CAR UK LTD,476674,869.58,215557314
BEIS,Met Office,2023-02-13,03 STAFF COSTS T&S,CHIEF FINANCIAL OFFICER,ENTERPRISE RENT A CAR UK LTD,476487,2830.44,215557314
BEIS,Met Office,2023-02-27,03 STAFF COSTS T&S,CHIEF FINANCIAL OFFICER,ENTERPRISE RENT A CAR UK LTD,476839,3162.81,215557314
BEIS,Met Office,2023-02-07,03 STAFF COSTS T&S,CHIEF FINANCIAL OFFICER,ENTERPRISE RENT A CAR UK LTD,476191,5290.34,215557314
BEIS,Met Office,2023-02-09,11 SERVICES,CHIEF FINANCIAL OFFICER,EXPONENTIAL-E,476354,451.86,GB798572653
BEIS,Met Office,2023-02-07,11 SERVICES,CHIEF FINANCIAL OFFICER,EXPONENTIAL-E,476189,2256.32,GB798572653
BEIS,Met Office,2023-02-01,06 ACCOMMODATION,CHIEF FINANCIAL OFFICER,FAIR ISLE ELECTRICITY COMPANY LTD,475928,156.6,774548783
BEIS,Met Office,2023-02-23,FIXTURE & FITTINGS,CHIEF FINANCIAL OFFICER,FMS INTERIOR SERVICES LTD,476740,49.32,922056940
BEIS,Met Office,2023-02-23,FIXTURE & FITTINGS,CHIEF FINANCIAL OFFICER,FMS INTERIOR SERVICES LTD,476740,72,922056940
BEIS,Met Office,2023-02-23,FIXTURE & FITTINGS,CHIEF FINANCIAL OFFICER,FMS INTERIOR SERVICES LTD,476740,72,922056940
BEIS,Met Office,2023-02-23,FIXTURE & FITTINGS,CHIEF FINANCIAL OFFICER,FMS INTERIOR SERVICES LTD,476740,75,922056940
BEIS,Met Office,2023-02-23,FIXTURE & FITTINGS,CHIEF FINANCIAL OFFICER,FMS INTERIOR SERVICES LTD,476740,89.96,922056940
BEIS,Met Office,2023-02-23,FIXTURE & FITTINGS,CHIEF FINANCIAL OFFICER,FMS INTERIOR SERVICES LTD,476740,102,922056940
BEIS,Met Office,2023-02-23,FIXTURE & FITTINGS,CHIEF FINANCIAL OFFICER,FMS INTERIOR SERVICES LTD,476740,104,922056940
BEIS,Met Office,2023-02-23,FIXTURE & FITTINGS,CHIEF FINANCIAL OFFICER,FMS INTERIOR SERVICES LTD,476740,153,922056940
BEIS,Met Office,2023-02-23,FIXTURE & FITTINGS,CHIEF FINANCIAL OFFICER,FMS INTERIOR SERVICES LTD,476740,157.76,922056940
BEIS,Met Office,2023-02-23,FIXTURE & FITTINGS,CHIEF FINANCIAL OFFICER,FMS INTERIOR SERVICES LTD,476740,288,922056940
BEIS,Met Office,2023-02-23,FIXTURE & FITTINGS,CHIEF FINANCIAL OFFICER,FMS INTERIOR SERVICES LTD,476740,453,922056940
BEIS,Met Office,2023-02-23,FIXTURE & FITTINGS,CHIEF FINANCIAL OFFICER,FMS INTERIOR SERVICES LTD,476740,1087.56,922056940
BEIS,Met Office,2023-02-13,11 SERVICES,CHIEF FINANCIAL OFFICER,GAMMA BUSINESS COMMUNICATIONS LTD,476431,570.83,823820344
BEIS,Met Office,2023-02-13,11 SERVICES,CHIEF FINANCIAL OFFICER,GAMMA TELECOM LTD,476419,27132.32,823820344
BEIS,Met Office,2023-02-13,11 SERVICES,CHIEF FINANCIAL OFFICER,GB GROUP PLC,476427,80.04,539716218
BEIS,Met Office,2023-02-13,11 SERVICES,CHIEF FINANCIAL OFFICER,GB GROUP PLC,476429,404.31,539716218
BEIS,Met Office,2023-02-10,11 SERVICES,CHIEF FINANCIAL OFFICER,GIBRALTAR NYNEX COMMUNICATIONS LTD,476374,660,NOVAT
BEIS,Met Office,2023-02-16,06 ACCOMMODATION,CHIEF FINANCIAL OFFICER,Health & Safety Laboratory,476532,18675.31,888810177
BEIS,Met Office,2023-02-22,11 SERVICES,CHIEF FINANCIAL OFFICER,INTEROUTE COMMUNICATIONS LIMITED,476597,7100,832 7071 39
BEIS,Met Office,2023-02-17,11 SERVICES,CHIEF FINANCIAL OFFICER,JERSEY TELECOM,476531,1287.21,NOTVATREG
BEIS,Met Office,2023-02-02,11 SERVICES,CHIEF FINANCIAL OFFICER,LEASEDRIVE RENTAL MANAGEMENT LTD,475997,119.37,733546040
BEIS,Met Office,2023-02-02,11 SERVICES,CHIEF FINANCIAL OFFICER,LICENCE BUREAU LTD,476073,117.95,820219467
BEIS,Met Office,2023-02-21,11 SERVICES,CHIEF FINANCIAL OFFICER,MAWASEM LTD,476693,0,197694731
BEIS,Met Office,2023-02-21,11 SERVICES,CHIEF FINANCIAL OFFICER,MAWASEM LTD,476693,124238.93,197694731
BEIS,Met Office,2023-02-01,11 SERVICES,CHIEF FINANCIAL OFFICER,METRIKUS LIMITED,475956,8100,321 8772 02
BEIS,Met Office,2023-02-07,06 ACCOMMODATION,CHIEF FINANCIAL OFFICER,MITIE SECURITY LTD,476140,38.58,416706654
BEIS,Met Office,2023-02-07,06 ACCOMMODATION,CHIEF FINANCIAL OFFICER,MITIE SECURITY LTD,476144,45,416706654
BEIS,Met Office,2023-02-07,06 ACCOMMODATION,CHIEF FINANCIAL OFFICER,MITIE SECURITY LTD,476143,1125,416706654
BEIS,Met Office,2023-02-07,11 SERVICES,CHIEF FINANCIAL OFFICER,MITIE SECURITY LTD,476141,1408.17,416706654
BEIS,Met Office,2023-02-01,11 SERVICES,CHIEF FINANCIAL OFFICER,MITIE SECURITY LTD,475879,3117,416706654
BEIS,Met Office,2023-02-28,11 SERVICES,CHIEF FINANCIAL OFFICER,MITIE SECURITY LTD,476821,3685.44,416706654
BEIS,Met Office,2023-02-28,11 SERVICES,CHIEF FINANCIAL OFFICER,MITIE SECURITY LTD,476821,6705.06,416706654
BEIS,Met Office,2023-02-01,11 SERVICES,CHIEF FINANCIAL OFFICER,MITIE SECURITY LTD,475879,7273.5,416706654
BEIS,Met Office,2023-02-01,11 SERVICES,CHIEF FINANCIAL OFFICER,MITIE SECURITY LTD,475880,20780.59,416706654
BEIS,Met Office,2023-02-28,11 SERVICES,CHIEF FINANCIAL OFFICER,MITIE SECURITY LTD,476822,20780.59,416706654
BEIS,Met Office,2023-02-17,11 SERVICES,CHIEF FINANCIAL OFFICER,Morton Fraser LLP,476614,241.5,269129336
BEIS,Met Office,2023-02-06,06 ACCOMMODATION,CHIEF FINANCIAL OFFICER,MOUNT CHARLES GROUP LTD,476168,576.36,517116274
BEIS,Met Office,2023-02-03,06 ACCOMMODATION,CHIEF FINANCIAL OFFICER,MRS FRANCES E LOCKYER,476065,2700,-
BEIS,Met Office,2023-02-16,06 ACCOMMODATION,CHIEF FINANCIAL OFFICER,National Oceanography Centre,472588,29285.09,GB 338 5487 64
BEIS,Met Office,2023-02-07,06 ACCOMMODATION,CHIEF FINANCIAL OFFICER,National Oceanography Centre,476220,29285.09,GB 338 5487 64
BEIS,Met Office,2023-02-23,06 ACCOMMODATION,CHIEF FINANCIAL OFFICER,NOC INNOVATIONS LIMITED,476714,-29285.09,-
BEIS,Met Office,2023-02-23,06 ACCOMMODATION,CHIEF FINANCIAL OFFICER,NOC INNOVATIONS LIMITED,476715,-29285.09,-
BEIS,Met Office,2023-02-23,06 ACCOMMODATION,CHIEF FINANCIAL OFFICER,NOC INNOVATIONS LIMITED,475999,29285.09,-
BEIS,Met Office,2023-02-23,06 ACCOMMODATION,CHIEF FINANCIAL OFFICER,NOC INNOVATIONS LIMITED,476000,29285.09,-
BEIS,Met Office,2023-02-10,13 MISCELLANEOUS,CHIEF FINANCIAL OFFICER,NORSCOTT VENDING SERVICES LTD,476322,41.7,751402071
BEIS,Met Office,2023-02-03,13 MISCELLANEOUS,CHIEF FINANCIAL OFFICER,NORSCOTT VENDING SERVICES LTD,476063,203.4,751402071
BEIS,Met Office,2023-02-08,06 ACCOMMODATION,CHIEF FINANCIAL OFFICER,OCS Group UK Limited,476216,161247.05,GB238034379
BEIS,Met Office,2023-02-06,06 ACCOMMODATION,CHIEF FINANCIAL OFFICER,POD POINT,476129,3186.73,278743455
BEIS,Met Office,2023-02-08,11 SERVICES,CHIEF FINANCIAL OFFICER,POSTURITE (UK) LTD,475960,28.55,583565114
BEIS,Met Office,2023-02-08,11 SERVICES,CHIEF FINANCIAL OFFICER,POSTURITE (UK) LTD,476118,33,583565114
BEIS,Met Office,2023-02-01,11 SERVICES,CHIEF FINANCIAL OFFICER,POSTURITE (UK) LTD,475791,50,583565114
BEIS,Met Office,2023-02-08,11 SERVICES,CHIEF FINANCIAL OFFICER,POSTURITE (UK) LTD,476304,50,583565114
BEIS,Met Office,2023-02-17,11 SERVICES,CHIEF FINANCIAL OFFICER,POSTURITE (UK) LTD,476461,50,583565114
BEIS,Met Office,2023-02-17,11 SERVICES,CHIEF FINANCIAL OFFICER,POSTURITE (UK) LTD,476483,54.56,583565114
BEIS,Met Office,2023-02-01,11 SERVICES,CHIEF FINANCIAL OFFICER,POSTURITE (UK) LTD,475926,65.75,583565114
BEIS,Met Office,2023-02-01,11 SERVICES,CHIEF FINANCIAL OFFICER,POSTURITE (UK) LTD,475929,65.75,583565114
BEIS,Met Office,2023-02-01,11 SERVICES,CHIEF FINANCIAL OFFICER,POSTURITE (UK) LTD,475925,75,583565114
BEIS,Met Office,2023-02-08,11 SERVICES,CHIEF FINANCIAL OFFICER,POSTURITE (UK) LTD,476117,78.13,583565114
BEIS,Met Office,2023-02-13,11 SERVICES,CHIEF FINANCIAL OFFICER,POSTURITE (UK) LTD,476424,187.77,583565114
BEIS,Met Office,2023-02-08,11 SERVICES,CHIEF FINANCIAL OFFICER,POSTURITE (UK) LTD,476306,195.65,583565114
BEIS,Met Office,2023-02-08,11 SERVICES,CHIEF FINANCIAL OFFICER,POSTURITE (UK) LTD,475827,208.52,583565114
BEIS,Met Office,2023-02-01,11 SERVICES,CHIEF FINANCIAL OFFICER,POSTURITE (UK) LTD,475881,244.46,583565114
BEIS,Met Office,2023-02-08,11 SERVICES,CHIEF FINANCIAL OFFICER,POSTURITE (UK) LTD,476307,840.2,583565114
BEIS,Met Office,2023-02-07,06 ACCOMMODATION,CHIEF FINANCIAL OFFICER,POWER NI ENERGY LTD,476182,1425.08,617518142
BEIS,Met Office,2023-02-28,03 STAFF COSTS T&S,CHIEF FINANCIAL OFFICER,RAINBOW CITY TAXIS,476863,25.49,724295039
BEIS,Met Office,2023-02-15,06 ACCOMMODATION,CHIEF FINANCIAL OFFICER,REDACTED � PERSONAL DATA,476245,1115,-
BEIS,Met Office,2023-02-10,06 ACCOMMODATION,CHIEF FINANCIAL OFFICER,RIVER RIDGE,476353,117.53,176286083
BEIS,Met Office,2023-02-13,06 ACCOMMODATION,CHIEF FINANCIAL OFFICER,SAFESTORE LTD,476336,3430.33,722887607
BEIS,Met Office,2023-02-13,06 ACCOMMODATION,CHIEF FINANCIAL OFFICER,Scottish Government,476382,21783,888842551
BEIS,Met Office,2023-02-22,06 ACCOMMODATION,CHIEF FINANCIAL OFFICER,SHETLAND CLEANING SERVICES,476632,769.57,430028404
BEIS,Met Office,2023-02-22,06 ACCOMMODATION,CHIEF FINANCIAL OFFICER,SIGNS EXPRESS (EXETER),476706,34,631397439
BEIS,Met Office,2023-02-22,11 SERVICES,CHIEF FINANCIAL OFFICER,SIGNS EXPRESS (EXETER),476701,658,631397439
BEIS,Met Office,2023-02-10,06 ACCOMMODATION,CHIEF FINANCIAL OFFICER,South West Water Ltd,476309,23.06,236873674
BEIS,Met Office,2023-02-10,06 ACCOMMODATION,CHIEF FINANCIAL OFFICER,South West Water Ltd,476357,145.04,236873674
BEIS,Met Office,2023-02-10,06 ACCOMMODATION,CHIEF FINANCIAL OFFICER,South West Water Ltd,476316,930.1,236873674
BEIS,Met Office,2023-02-28,06 ACCOMMODATION,CHIEF FINANCIAL OFFICER,ST MODWEN VENTURES LTD,476829,15.18,975081008
BEIS,Met Office,2023-02-14,06 ACCOMMODATION,CHIEF FINANCIAL OFFICER,ST MODWEN VENTURES LTD,476527,20.64,975081008
BEIS,Met Office,2023-02-14,06 ACCOMMODATION,CHIEF FINANCIAL OFFICER,ST MODWEN VENTURES LTD,476542,23.83,975081008
BEIS,Met Office,2023-02-01,11 SERVICES,CHIEF FINANCIAL OFFICER,STARK SOFTWARE INTERNATIONAL LTD,475908,5248.25,644372829
BEIS,Met Office,2023-02-09,PLANT AND EQUIPMENT,CHIEF FINANCIAL OFFICER,Stewart Morris Partnership Ltd,476355,5737.5,687720886
BEIS,Met Office,2023-02-14,11 SERVICES,CHIEF FINANCIAL OFFICER,SURE SOUTH ATLANTIC LTD,476481,785.4,-
BEIS,Met Office,2023-02-17,11 SERVICES,CHIEF FINANCIAL OFFICER,SURE SOUTH ATLANTIC LTD,476613,2124.66,NOVATREG
BEIS,Met Office,2023-02-14,11 SERVICES,CHIEF FINANCIAL OFFICER,SURE SOUTH ATLANTIC LTD,476482,4888.86,-
BEIS,Met Office,2023-02-14,11 SERVICES,CHIEF FINANCIAL OFFICER,SURE SOUTH ATLANTIC LTD (ST HELENA),476480,1285,30005
BEIS,Met Office,2023-02-01,11 SERVICES,CHIEF FINANCIAL OFFICER,SWISSCOM (SCHWEIZ) AG,475292,133.68,-
BEIS,Met Office,2023-02-13,11 SERVICES,CHIEF FINANCIAL OFFICER,TELEFONICA O2 UK LIMITED,476423,0,778603785
BEIS,Met Office,2023-02-13,11 SERVICES,CHIEF FINANCIAL OFFICER,TELEFONICA O2 UK LIMITED,476423,5357.98,778603785
BEIS,Met Office,2023-02-09,06 ACCOMMODATION,CHIEF FINANCIAL OFFICER,TENNIE FACILITIES PROPERTY MANAGEMENT LTD,476234,207.15,982055803
BEIS,Met Office,2023-02-07,FIXTURE & FITTINGS,CHIEF FINANCIAL OFFICER,THORLUX LIGHTING,474623,12117.63,GB 109 939 440
BEIS,Met Office,2023-02-07,06 ACCOMMODATION,CHIEF FINANCIAL OFFICER,TOP RANK CLEANING SERVICES LTD,476214,1074,-
BEIS,Met Office,2023-02-15,06 ACCOMMODATION,CHIEF FINANCIAL OFFICER,TOTAL GAS & POWER LIMITED,476541,1054.75,689638949
BEIS,Met Office,2023-02-21,06 ACCOMMODATION,CHIEF FINANCIAL OFFICER,TOTAL GAS & POWER LIMITED,476576,23692.02,689638949
BEIS,Met Office,2023-02-06,13 MISCELLANEOUS,CHIEF FINANCIAL OFFICER,University Of Reading,476075,5.32,200012659
BEIS,Met Office,2023-02-21,11 SERVICES,CHIEF FINANCIAL OFFICER,WOMBLE BOND DICKINSON (UK) LLP,476697,9816,GB123393627
BEIS,Met Office,2023-02-21,11 SERVICES,CHIEF FINANCIAL OFFICER,WOMBLE BOND DICKINSON (UK) LLP,476698,13875,GB123393627
BEIS,Met Office,2023-02-08,11 SERVICES,CHIEF FINANCIAL OFFICER,WT CONSULTANCY (SW) LTD,476060,8050,223 4662 25
BEIS,Met Office,2023-02-13,11 SERVICES,MARKETS,ACCELERATION EMARKETING,476425,3322.88,848940776
BEIS,Met Office,2023-02-07,11 SERVICES,MARKETS,ADOPSTAR,476077,1250,115036848
BEIS,Met Office,2023-02-17,11 SERVICES,MARKETS,BEIS,476497,540574.55,888825550
BEIS,Met Office,2023-02-13,11 SERVICES,MARKETS,BJSS LIMITED,476332,3000,613295452
BEIS,Met Office,2023-02-13,11 SERVICES,MARKETS,BJSS LIMITED,475916,10468.75,613295452
BEIS,Met Office,2023-02-09,11 SERVICES,MARKETS,BJSS LIMITED,476372,23142.5,613295452
BEIS,Met Office,2023-02-15,11 SERVICES,MARKETS,BJSS LIMITED,476489,23868.75,613295452
BEIS,Met Office,2023-02-13,11 SERVICES,MARKETS,BJSS LIMITED,476430,31805,613295452
BEIS,Met Office,2023-02-06,11 SERVICES,MARKETS,CACI LTD,476137,25063,380609841
BEIS,Met Office,2023-02-06,11 SERVICES,MARKETS,CACI LTD,476138,33680.66,380609841
BEIS,Met Office,2023-02-24,11 SERVICES,MARKETS,CLAREMONT MARKETING COMMUNICATIONS LTD,476779,14270,429442584
BEIS,Met Office,2023-02-07,12 INTERNATIONAL,MARKETS,CROWN AGENTS BANK,476128,13209.93,-
BEIS,Met Office,2023-02-03,12 INTERNATIONAL,MARKETS,CROWN AGENTS BANK,475957,13346.24,-
BEIS,Met Office,2023-02-20,11 SERVICES,MARKETS,DJS RESEARCH LIMITED,476600,17000,775718779
BEIS,Met Office,2023-02-01,11 SERVICES,MARKETS,ECMWF,24483,-11747.04,NOTVATREG
BEIS,Met Office,2023-02-01,11 SERVICES,MARKETS,ECMWF,24440,130.53,NOTVATREG
BEIS,Met Office,2023-02-01,11 SERVICES,MARKETS,ECMWF,24473,168.14,NOTVATREG
BEIS,Met Office,2023-02-01,11 SERVICES,MARKETS,ECMWF,24446,236.5,NOTVATREG
BEIS,Met Office,2023-02-01,11 SERVICES,MARKETS,ECMWF,24504,239.33,NOTVATREG
BEIS,Met Office,2023-02-01,11 SERVICES,MARKETS,ECMWF,24493,248.22,NOTVATREG
BEIS,Met Office,2023-02-01,11 SERVICES,MARKETS,ECMWF,24500,259.19,NOTVATREG
BEIS,Met Office,2023-02-01,11 SERVICES,MARKETS,ECMWF,24489,289.27,NOTVATREG
BEIS,Met Office,2023-02-01,11 SERVICES,MARKETS,ECMWF,24497,291.78,NOTVATREG
BEIS,Met Office,2023-02-01,11 SERVICES,MARKETS,ECMWF,24456,303.78,NOTVATREG
BEIS,Met Office,2023-02-01,11 SERVICES,MARKETS,ECMWF,24465,348.36,NOTVATREG
BEIS,Met Office,2023-02-01,11 SERVICES,MARKETS,ECMWF,24476,348.36,NOTVATREG
BEIS,Met Office,2023-02-01,11 SERVICES,MARKETS,ECMWF,24468,351.69,NOTVATREG
BEIS,Met Office,2023-02-22,11 SERVICES,MARKETS,ECMWF,24621,445.34,NOTVATREG
BEIS,Met Office,2023-02-01,11 SERVICES,MARKETS,ECMWF,24454,549.97,NOTVATREG
BEIS,Met Office,2023-02-01,11 SERVICES,MARKETS,ECMWF,24485,602.51,NOTVATREG
BEIS,Met Office,2023-02-01,11 SERVICES,MARKETS,ECMWF,24460,649.69,NOTVATREG
BEIS,Met Office,2023-02-01,11 SERVICES,MARKETS,ECMWF,24457,685.46,NOTVATREG
BEIS,Met Office,2023-02-01,11 SERVICES,MARKETS,ECMWF,24458,685.46,NOTVATREG
BEIS,Met Office,2023-02-01,11 SERVICES,MARKETS,ECMWF,24441,1008.03,NOTVATREG
BEIS,Met Office,2023-02-01,11 SERVICES,MARKETS,ECMWF,24459,1023.95,NOTVATREG
BEIS,Met Office,2023-02-01,11 SERVICES,MARKETS,ECMWF,24475,1082.24,NOTVATREG
BEIS,Met Office,2023-02-01,11 SERVICES,MARKETS,ECMWF,24482,1298.35,NOTVATREG
BEIS,Met Office,2023-02-01,11 SERVICES,MARKETS,ECMWF,24447,1305.87,NOTVATREG
BEIS,Met Office,2023-02-01,11 SERVICES,MARKETS,ECMWF,24484,1345.36,NOTVATREG
BEIS,Met Office,2023-02-01,11 SERVICES,MARKETS,ECMWF,24449,1466.76,NOTVATREG
BEIS,Met Office,2023-02-01,11 SERVICES,MARKETS,ECMWF,24501,1526.43,NOTVATREG
BEIS,Met Office,2023-02-01,11 SERVICES,MARKETS,ECMWF,24477,1634.52,NOTVATREG
BEIS,Met Office,2023-02-01,11 SERVICES,MARKETS,ECMWF,24450,1669.65,NOTVATREG
BEIS,Met Office,2023-02-01,11 SERVICES,MARKETS,ECMWF,24445,1741.17,NOTVATREG
BEIS,Met Office,2023-02-22,11 SERVICES,MARKETS,ECMWF,24623,1762.21,NOTVATREG
BEIS,Met Office,2023-02-22,11 SERVICES,MARKETS,ECMWF,24624,1762.21,NOTVATREG
BEIS,Met Office,2023-02-01,11 SERVICES,MARKETS,ECMWF,24444,1865.45,NOTVATREG
BEIS,Met Office,2023-02-01,11 SERVICES,MARKETS,ECMWF,24490,1871.74,NOTVATREG
BEIS,Met Office,2023-02-01,11 SERVICES,MARKETS,ECMWF,24466,1966.27,NOTVATREG
BEIS,Met Office,2023-02-01,11 SERVICES,MARKETS,ECMWF,24474,2191.15,NOTVATREG
BEIS,Met Office,2023-02-22,11 SERVICES,MARKETS,ECMWF,24622,2202.76,NOTVATREG
BEIS,Met Office,2023-02-01,11 SERVICES,MARKETS,ECMWF,24471,2293.13,NOTVATREG
BEIS,Met Office,2023-02-01,11 SERVICES,MARKETS,ECMWF,24496,2493.49,NOTVATREG
BEIS,Met Office,2023-02-01,11 SERVICES,MARKETS,ECMWF,24498,2611.75,NOTVATREG
BEIS,Met Office,2023-02-22,11 SERVICES,MARKETS,ECMWF,24625,2643.31,NOTVATREG
BEIS,Met Office,2023-02-01,11 SERVICES,MARKETS,ECMWF,24455,2741.71,NOTVATREG
BEIS,Met Office,2023-02-01,11 SERVICES,MARKETS,ECMWF,24467,2766.29,NOTVATREG
BEIS,Met Office,2023-02-22,11 SERVICES,MARKETS,ECMWF,24618,3562.99,NOTVATREG
BEIS,Met Office,2023-02-01,11 SERVICES,MARKETS,ECMWF,24507,4137.65,NOTVATREG
BEIS,Met Office,2023-02-01,11 SERVICES,MARKETS,ECMWF,24478,4391.51,NOTVATREG
BEIS,Met Office,2023-02-01,11 SERVICES,MARKETS,ECMWF,24486,4408.11,NOTVATREG
BEIS,Met Office,2023-02-01,11 SERVICES,MARKETS,ECMWF,24453,5543.12,NOTVATREG
BEIS,Met Office,2023-02-01,11 SERVICES,MARKETS,ECMWF,24439,5561.66,NOTVATREG
BEIS,Met Office,2023-02-01,11 SERVICES,MARKETS,ECMWF,24464,5652.4,NOTVATREG
BEIS,Met Office,2023-02-01,11 SERVICES,MARKETS,ECMWF,24472,6363.88,NOTVATREG
BEIS,Met Office,2023-02-01,11 SERVICES,MARKETS,ECMWF,24488,8705.83,NOTVATREG
BEIS,Met Office,2023-02-22,11 SERVICES,MARKETS,ECMWF,24620,8811.03,NOTVATREG
BEIS,Met Office,2023-02-01,11 SERVICES,MARKETS,ECMWF,24448,10311.2,NOTVATREG
BEIS,Met Office,2023-02-01,11 SERVICES,MARKETS,ECMWF,24494,12623.45,NOTVATREG
BEIS,Met Office,2023-02-22,11 SERVICES,MARKETS,ECMWF,24619,12775.99,NOTVATREG
BEIS,Met Office,2023-02-01,11 SERVICES,MARKETS,ECMWF,24451,20168.16,NOTVATREG
BEIS,Met Office,2023-02-01,11 SERVICES,MARKETS,ECMWF,24505,24142.82,NOTVATREG
BEIS,Met Office,2023-02-01,11 SERVICES,MARKETS,ECMWF,24480,28946.87,NOTVATREG
BEIS,Met Office,2023-02-01,11 SERVICES,MARKETS,ECMWF,24502,28946.87,NOTVATREG
BEIS,Met Office,2023-02-01,11 SERVICES,MARKETS,ECMWF,24443,30600.98,NOTVATREG
BEIS,Met Office,2023-02-01,11 SERVICES,MARKETS,ECMWF,24463,30600.98,NOTVATREG
BEIS,Met Office,2023-02-01,11 SERVICES,MARKETS,ECMWF,24470,30600.98,NOTVATREG
BEIS,Met Office,2023-02-01,11 SERVICES,MARKETS,ECMWF,24481,30600.98,NOTVATREG
BEIS,Met Office,2023-02-01,11 SERVICES,MARKETS,ECMWF,24487,30600.98,NOTVATREG
BEIS,Met Office,2023-02-01,11 SERVICES,MARKETS,ECMWF,24495,30600.98,NOTVATREG
BEIS,Met Office,2023-02-01,11 SERVICES,MARKETS,ECMWF,24499,30600.98,NOTVATREG
BEIS,Met Office,2023-02-01,11 SERVICES,MARKETS,ECMWF,24503,30600.98,NOTVATREG
BEIS,Met Office,2023-02-01,11 SERVICES,MARKETS,ECMWF,24452,32736.65,NOTVATREG
BEIS,Met Office,2023-02-01,11 SERVICES,MARKETS,ECMWF,24479,35106.25,NOTVATREG
BEIS,Met Office,2023-02-01,11 SERVICES,MARKETS,ECMWF,24461,36412.12,NOTVATREG
BEIS,Met Office,2023-02-01,11 SERVICES,MARKETS,ECMWF,24462,36412.12,NOTVATREG
BEIS,Met Office,2023-02-01,11 SERVICES,MARKETS,ECMWF,24469,36412.12,NOTVATREG
BEIS,Met Office,2023-02-01,11 SERVICES,MARKETS,ECMWF,24492,36412.12,NOTVATREG
BEIS,Met Office,2023-02-01,11 SERVICES,MARKETS,ECMWF,24442,36566.49,NOTVATREG
BEIS,Met Office,2023-02-01,11 SERVICES,MARKETS,ECMWF,24491,36566.5,NOTVATREG
BEIS,Met Office,2023-02-01,11 SERVICES,MARKETS,ECMWF,24506,145648.48,NOTVATREG
BEIS,Met Office,2023-02-09,11 SERVICES,MARKETS,Esri (Uk) Ltd,476102,3870.83,787430791
BEIS,Met Office,2023-02-10,11 SERVICES,MARKETS,Esri (Uk) Ltd,476103,9978,787430791
BEIS,Met Office,2023-02-01,12 INTERNATIONAL,MARKETS,FOXSTONES TRAINING AND LEARNING,475961,2950,-
BEIS,Met Office,2023-02-15,11 SERVICES,MARKETS,GOTO EVENTS,476490,5500,979569236
BEIS,Met Office,2023-02-15,08 SOFTWARE LICENCES,MARKETS,"IBL SOFTWARE ENGINEERING, SPOL S.R.O.",24602,1078.62,SK2020241883
BEIS,Met Office,2023-02-15,08 SOFTWARE LICENCES,MARKETS,"IBL SOFTWARE ENGINEERING, SPOL S.R.O.",24602,5435.64,SK2020241883
BEIS,Met Office,2023-02-15,08 SOFTWARE LICENCES,MARKETS,"IBL SOFTWARE ENGINEERING, SPOL S.R.O.",24602,10773.78,SK2020241883
BEIS,Met Office,2023-02-15,08 SOFTWARE LICENCES,MARKETS,"IBL SOFTWARE ENGINEERING, SPOL S.R.O.",24602,11502.31,SK2020241883
BEIS,Met Office,2023-02-22,08 SOFTWARE LICENCES,MARKETS,"IBL SOFTWARE ENGINEERING, SPOL S.R.O.",24615,14971.7,SK2020241883
BEIS,Met Office,2023-02-15,08 SOFTWARE LICENCES,MARKETS,"IBL SOFTWARE ENGINEERING, SPOL S.R.O.",24602,20519.46,SK2020241883
BEIS,Met Office,2023-02-15,08 SOFTWARE LICENCES,MARKETS,"IBL SOFTWARE ENGINEERING, SPOL S.R.O.",24602,54343.94,SK2020241883
BEIS,Met Office,2023-02-15,08 SOFTWARE LICENCES,MARKETS,"IBL SOFTWARE ENGINEERING, SPOL S.R.O.",24602,54343.94,SK2020241883
BEIS,Met Office,2023-02-15,08 SOFTWARE LICENCES,MARKETS,"IBL SOFTWARE ENGINEERING, SPOL S.R.O.",24602,115010.7,SK2020241883
BEIS,Met Office,2023-02-22,07 EQUIPMENT,MARKETS,INTELLISENSE SYSTEMS INCORPORATED,10966,752.34,-
BEIS,Met Office,2023-02-22,07 EQUIPMENT,MARKETS,INTELLISENSE SYSTEMS INCORPORATED,10966,197042.41,-
BEIS,Met Office,2023-02-08,11 SERVICES,MARKETS,"INTELLOVATIONS, LLC",10942,1735.45,-
BEIS,Met Office,2023-02-07,11 SERVICES,MARKETS,LHR BUSINESS SUPPORT CENTRE LTD,476190,9.27,927365404
BEIS,Met Office,2023-02-22,11 SERVICES,MARKETS,MAGPIE CREATIVE COMMUNICATIONS,476651,12500,117332539
BEIS,Met Office,2023-02-23,11 SERVICES,MARKETS,MAGPIE CREATIVE COMMUNICATIONS,476652,22000,117332539
BEIS,Met Office,2023-02-22,11 SERVICES,MARKETS,MAGPIE CREATIVE COMMUNICATIONS,476653,23000,117332539
BEIS,Met Office,2023-02-01,11 SERVICES,MARKETS,METEO-FRANCE AGENCE COMPTABLE SEC D2C,24629,6600.54,FR03180060030
BEIS,Met Office,2023-02-01,11 SERVICES,MARKETS,OSBORNE CLARKE LLP,475918,840,GB138187353
BEIS,Met Office,2023-02-22,11 SERVICES,MARKETS,PLOUGHSHARE INNOVATIONS,476716,22098,878305296
BEIS,Met Office,2023-02-03,06 ACCOMMODATION,MARKETS,REDACTED � PERSONAL DATA,476066,100,UTR: 6885284589
BEIS,Met Office,2023-02-03,06 ACCOMMODATION,MARKETS,REDACTED � PERSONAL DATA,476066,220,UTR: 6885284589
BEIS,Met Office,2023-02-22,11 SERVICES,MARKETS,SAS OCEAN DATA LAB,24610,20465.82,FR51 792 395 92
BEIS,Met Office,2023-02-01,11 SERVICES,MARKETS,SAVANTA GROUP LTD,475948,4430,GB 749 7521 90
BEIS,Met Office,2023-02-20,11 SERVICES,MARKETS,SOFTWIRE TECHNOLOGY LIMITED,476571,47250,752 1253 57
BEIS,Met Office,2023-02-07,11 SERVICES,MARKETS,SPOKE (INTERACTIVE) LTD,476186,700,840156451
BEIS,Met Office,2023-02-01,12 INTERNATIONAL,MARKETS,SPREP,10926,40095.61,-
BEIS,Met Office,2023-02-08,11 SERVICES,MARKETS,SWANTECH LOGISTICS LTD,476193,2552,769332401
BEIS,Met Office,2023-02-17,12 INTERNATIONAL,MARKETS,SWANTECH LOGISTICS LTD,476538,11567.17,769332401
BEIS,Met Office,2023-02-16,06 ACCOMMODATION,MARKETS,Trinity House,476526,25.14,243120414
BEIS,Met Office,2023-02-16,06 ACCOMMODATION,MARKETS,Trinity House,476526,1508.88,243120414
BEIS,Met Office,2023-02-28,11 SERVICES,MARKETS,ULTRA ELECTRONICS LTD NUCLEAR CONTROL SYSTEMS,476842,15.3,123340754
BEIS,Met Office,2023-02-09,11 SERVICES,MARKETS,ULTRA ELECTRONICS LTD NUCLEAR CONTROL SYSTEMS,473747,1919.68,123340754
BEIS,Met Office,2023-02-28,11 SERVICES,MARKETS,ULTRA ELECTRONICS LTD NUCLEAR CONTROL SYSTEMS,476842,4911.51,123340754
BEIS,Met Office,2023-02-09,11 SERVICES,MARKETS,ULTRA ELECTRONICS LTD NUCLEAR CONTROL SYSTEMS,475935,4926.81,123340754
BEIS,Met Office,2023-02-09,11 SERVICES,MARKETS,ULTRA ELECTRONICS LTD NUCLEAR CONTROL SYSTEMS,473747,6592.04,123340754
BEIS,Met Office,2023-02-09,11 SERVICES,MARKETS,ULTRA ELECTRONICS LTD NUCLEAR CONTROL SYSTEMS,475726,241567.46,123340754
BEIS,Met Office,2023-02-28,11 SERVICES,MARKETS,UNITED KINGDOM RESEARCH AND INNOVATION (UKRI),476813,1201.4,GB287461957
BEIS,Met Office,2023-02-28,11 SERVICES,MARKETS,UNITED KINGDOM RESEARCH AND INNOVATION (UKRI),476814,9072.03,GB287461957
BEIS,Met Office,2023-02-23,11 SERVICES,MARKETS,WALNUT UNLIMITED LIMITED,476599,-30860,648857968
BEIS,Met Office,2023-02-23,11 SERVICES,MARKETS,WALNUT UNLIMITED LIMITED,476741,7715,648857968
BEIS,Met Office,2023-02-23,11 SERVICES,MARKETS,WALNUT UNLIMITED LIMITED,476742,7715,648857968
BEIS,Met Office,2023-02-23,11 SERVICES,MARKETS,WALNUT UNLIMITED LIMITED,469287,30860,648857968
BEIS,Met Office,2023-02-28,11 SERVICES,MARKETS,WESTPOINT CENTRE (DEVON) LTD,476832,250,585 6015 25
BEIS,Met Office,2023-02-03,06 ACCOMMODATION,MARKETS,WHITEHAVEN MARINA LTD,476067,7.5,947044906
BEIS,Met Office,2023-02-03,06 ACCOMMODATION,MARKETS,WHITEHAVEN MARINA LTD,476067,50,947044906
BEIS,Met Office,2023-02-10,11 SERVICES,MARKETS,WORLDPAY (UK) LTD,476370,607.63,991280207
BEIS,Met Office,2023-02-07,11 SERVICES,MARKETS,WORLDPAY LTD,476105,27.55,991280207
BEIS,Met Office,2023-02-01,11 SERVICES,OFFICE OF THE CEO,ESCOTT HUNT LTD,475890,190,815727127
BEIS,Met Office,2023-02-02,11 SERVICES,OFFICE OF THE CEO,MAZARS LLP,475998,13545,839835673
BEIS,Met Office,2023-02-02,11 SERVICES,OFFICE OF THE CEO,MAZARS LLP,475958,28880,839835673
BEIS,Met Office,2023-02-07,11 SERVICES,OFFICE OF THE CEO,OSBORNE CLARKE LLP,476074,9000,GB138187353
BEIS,Met Office,2023-02-07,CYCLESCHEME,OTHER,EDENRED UK (CYCLESCHEME),476219,369.98,649 503 520
BEIS,Met Office,2023-02-06,TRADE CREDITORS,OTHER,NATWEST COMMERCIAL CARDS DIVISION,475721,134392.54,N/A
BEIS,Met Office,2023-02-01,11 SERVICES,PEOPLE,ACTIVE LEARNING TEAM LTD,475826,1542.52,-
BEIS,Met Office,2023-02-02,11 SERVICES,PEOPLE,ACTIVE LEARNING TEAM LTD,476028,2800,-
BEIS,Met Office,2023-02-08,13 MISCELLANEOUS,PEOPLE,BROADBEAN TECHNOLOGY LTD,476147,593.01,GB184088778
BEIS,Met Office,2023-02-08,13 MISCELLANEOUS,PEOPLE,BROADBEAN TECHNOLOGY LTD,476146,1375.11,GB184088778
BEIS,Met Office,2023-02-02,08 SOFTWARE LICENCES,PEOPLE,CATALYST IT,476021,1,978169262
BEIS,Met Office,2023-02-02,08 SOFTWARE LICENCES,PEOPLE,CATALYST IT,476021,1634.83,978169262
BEIS,Met Office,2023-02-24,11 SERVICES,PEOPLE,Cipd,476743,5900,756 202 737.
BEIS,Met Office,2023-02-08,11 SERVICES,PEOPLE,CIPHR,476136,7875,242661124
BEIS,Met Office,2023-02-02,13 MISCELLANEOUS,PEOPLE,EDENRED - CHILDCARE VOUCHERS,475823,-486,649 503 520
BEIS,Met Office,2023-02-02,13 MISCELLANEOUS,PEOPLE,EDENRED - CHILDCARE VOUCHERS,476064,9456.5,649 503 520
BEIS,Met Office,2023-02-02,13 MISCELLANEOUS,PEOPLE,EDENRED I&M (IRS VOUCHERS),475640,-336.6,649 503 520
BEIS,Met Office,2023-02-02,13 MISCELLANEOUS,PEOPLE,EDENRED I&M (IRS VOUCHERS),476079,0,649 503 520
BEIS,Met Office,2023-02-02,13 MISCELLANEOUS,PEOPLE,EDENRED I&M (IRS VOUCHERS),476079,40978.5,649 503 520
BEIS,Met Office,2023-02-07,11 SERVICES,PEOPLE,FLYFORM LTD,476053,248.75,237333808
BEIS,Met Office,2023-02-06,11 SERVICES,PEOPLE,HEALTH ASSURED LIMITED,476142,1120,927 5242 17
BEIS,Met Office,2023-02-17,04 CONTRACTORS,PEOPLE,MATRIX SCM LIMITED,476602,181406.89,249 5734 68
BEIS,Met Office,2023-02-10,04 CONTRACTORS,PEOPLE,MATRIX SCM LIMITED,476417,249867.11,249 5734 68
BEIS,Met Office,2023-02-03,04 CONTRACTORS,PEOPLE,MATRIX SCM LIMITED,476080,291096.46,249 5734 68
BEIS,Met Office,2023-02-22,11 SERVICES,PEOPLE,PLURALSIGHT,10932,3141.69,EU826020045
BEIS,Met Office,2023-02-20,11 SERVICES,PEOPLE,PRESS ASSOCIATION LTD,476659,6625.52,590629516
BEIS,Met Office,2023-02-10,11 SERVICES,PEOPLE,REDACTED � PERSONAL DATA,476323,825,143043312
BEIS,Met Office,2023-02-10,11 SERVICES,PEOPLE,REDACTED � PERSONAL DATA,476321,2100,143043312
BEIS,Met Office,2023-02-17,11 SERVICES,PEOPLE,REDACTED � PERSONAL DATA,476324,3944,143043312
BEIS,Met Office,2023-02-13,13 MISCELLANEOUS,PEOPLE,RESTORE RECORDS MANAGEMENT,476462,13.18,843 863011
BEIS,Met Office,2023-02-14,11 SERVICES,PEOPLE,RESULTS CATALYSTS LTD,476529,1200,811 9181 42
BEIS,Met Office,2023-02-03,11 SERVICES,PEOPLE,RIVER TRAINING AND HR,476078,800,-
BEIS,Met Office,2023-02-03,11 SERVICES,PEOPLE,SKILLTEC LIMITED,475267,995,909833105
BEIS,Met Office,2023-02-16,11 SERVICES,PEOPLE,SOURCE COACHING CONSULTANCY,476598,1340,170422048
BEIS,Met Office,2023-02-15,11 SERVICES,PEOPLE,SWANTECH LOGISTICS LTD,471450,900,769332401
BEIS,Met Office,2023-02-15,11 SERVICES,PEOPLE,SWANTECH LOGISTICS LTD,473225,900,769332401
BEIS,Met Office,2023-02-01,11 SERVICES,PEOPLE,TP HEALTH LTD,475917,1084,883064608
BEIS,Met Office,2023-02-24,11 SERVICES,PEOPLE,TP HEALTH LTD,476717,1258,883064608
BEIS,Met Office,2023-02-01,11 SERVICES,PEOPLE,TP HEALTH LTD,475914,1280,883064608
BEIS,Met Office,2023-02-17,11 SERVICES,PEOPLE,TP HEALTH LTD,476601,1320,883064608
BEIS,Met Office,2023-02-01,11 SERVICES,PEOPLE,TP HEALTH LTD,475915,1513,883064608
BEIS,Met Office,2023-02-20,11 SERVICES,PEOPLE,TP HEALTH LTD,474890,1614,883064608
BEIS,Met Office,2023-02-28,11 SERVICES,PEOPLE,VIMA CONSULTING LTD,476465,10350,231412752
BEIS,Met Office,2023-02-08,13 MISCELLANEOUS,PEOPLE,YOTI LTD,476215,14.4,GB199947617
BEIS,Met Office,2023-02-06,13 MISCELLANEOUS,PEOPLE,YOTI LTD,476119,500,GB199947617
BEIS,Met Office,2023-02-01,11 SERVICES,PEOPLE,YOUGOV PLC,475891,4100,991228109
BEIS,Met Office,2023-02-09,11 SERVICES,PROGRAMMES,BAE SYSTEMS APPLIED INTELLIGENCE LIMITED,476340,7060,GB641407169
BEIS,Met Office,2023-02-09,11 SERVICES,PROGRAMMES,BAE SYSTEMS APPLIED INTELLIGENCE LIMITED,476253,7574,GB641407169
BEIS,Met Office,2023-02-09,11 SERVICES,PROGRAMMES,BAE SYSTEMS APPLIED INTELLIGENCE LIMITED,476254,8100,GB641407169
BEIS,Met Office,2023-02-09,11 SERVICES,PROGRAMMES,BAE SYSTEMS APPLIED INTELLIGENCE LIMITED,476251,8550,GB641407169
BEIS,Met Office,2023-02-09,11 SERVICES,PROGRAMMES,BAE SYSTEMS APPLIED INTELLIGENCE LIMITED,476339,8550,GB641407169
BEIS,Met Office,2023-02-09,11 SERVICES,PROGRAMMES,BAE SYSTEMS APPLIED INTELLIGENCE LIMITED,476252,9380,GB641407169
BEIS,Met Office,2023-02-09,11 SERVICES,PROGRAMMES,BAE SYSTEMS APPLIED INTELLIGENCE LIMITED,476255,12540,GB641407169
BEIS,Met Office,2023-02-09,11 SERVICES,PROGRAMMES,BAE SYSTEMS APPLIED INTELLIGENCE LIMITED,476339,12540,GB641407169
BEIS,Met Office,2023-02-09,11 SERVICES,PROGRAMMES,BAE SYSTEMS APPLIED INTELLIGENCE LIMITED,476339,15991.25,GB641407169
BEIS,Met Office,2023-02-09,11 SERVICES,PROGRAMMES,BAE SYSTEMS APPLIED INTELLIGENCE LIMITED,476251,17353,GB641407169
BEIS,Met Office,2023-02-09,11 SERVICES,PROGRAMMES,BAE SYSTEMS APPLIED INTELLIGENCE LIMITED,476339,17353,GB641407169
BEIS,Met Office,2023-02-09,11 SERVICES,PROGRAMMES,BAE SYSTEMS APPLIED INTELLIGENCE LIMITED,476338,17445,GB641407169
BEIS,Met Office,2023-02-09,11 SERVICES,PROGRAMMES,BAE SYSTEMS APPLIED INTELLIGENCE LIMITED,476251,17470.25,GB641407169
BEIS,Met Office,2023-02-09,11 SERVICES,PROGRAMMES,BAE SYSTEMS APPLIED INTELLIGENCE LIMITED,476339,17470.25,GB641407169
BEIS,Met Office,2023-02-09,11 SERVICES,PROGRAMMES,BAE SYSTEMS APPLIED INTELLIGENCE LIMITED,476251,17822,GB641407169
BEIS,Met Office,2023-02-09,11 SERVICES,PROGRAMMES,BAE SYSTEMS APPLIED INTELLIGENCE LIMITED,476251,17822,GB641407169
BEIS,Met Office,2023-02-09,11 SERVICES,PROGRAMMES,BAE SYSTEMS APPLIED INTELLIGENCE LIMITED,476251,17822,GB641407169
BEIS,Met Office,2023-02-09,11 SERVICES,PROGRAMMES,BAE SYSTEMS APPLIED INTELLIGENCE LIMITED,476339,17822,GB641407169
BEIS,Met Office,2023-02-09,11 SERVICES,PROGRAMMES,BAE SYSTEMS APPLIED INTELLIGENCE LIMITED,476339,17822,GB641407169
BEIS,Met Office,2023-02-09,11 SERVICES,PROGRAMMES,BAE SYSTEMS APPLIED INTELLIGENCE LIMITED,476339,17822,GB641407169
BEIS,Met Office,2023-02-09,11 SERVICES,PROGRAMMES,BAE SYSTEMS APPLIED INTELLIGENCE LIMITED,476339,17822,GB641407169
BEIS,Met Office,2023-02-09,11 SERVICES,PROGRAMMES,BAE SYSTEMS APPLIED INTELLIGENCE LIMITED,476351,17822,GB641407169
BEIS,Met Office,2023-02-09,11 SERVICES,PROGRAMMES,BAE SYSTEMS APPLIED INTELLIGENCE LIMITED,476251,17881.13,GB641407169
BEIS,Met Office,2023-02-09,11 SERVICES,PROGRAMMES,BAE SYSTEMS APPLIED INTELLIGENCE LIMITED,476339,17881.13,GB641407169
BEIS,Met Office,2023-02-09,11 SERVICES,PROGRAMMES,BAE SYSTEMS APPLIED INTELLIGENCE LIMITED,476251,21574,GB641407169
BEIS,Met Office,2023-02-09,11 SERVICES,PROGRAMMES,BAE SYSTEMS APPLIED INTELLIGENCE LIMITED,476251,21920.12,GB641407169
BEIS,Met Office,2023-02-09,11 SERVICES,PROGRAMMES,BAE SYSTEMS APPLIED INTELLIGENCE LIMITED,476251,22097,GB641407169
BEIS,Met Office,2023-02-09,11 SERVICES,PROGRAMMES,BAE SYSTEMS APPLIED INTELLIGENCE LIMITED,476339,22097,GB641407169
BEIS,Met Office,2023-02-09,11 SERVICES,PROGRAMMES,BAE SYSTEMS APPLIED INTELLIGENCE LIMITED,476339,22097,GB641407169
BEIS,Met Office,2023-02-13,11 SERVICES,PROGRAMMES,BJSS LIMITED,476371,2700,613295452
BEIS,Met Office,2023-02-15,11 SERVICES,PROGRAMMES,BJSS LIMITED,476452,13400,613295452
BEIS,Met Office,2023-02-15,11 SERVICES,PROGRAMMES,BJSS LIMITED,476488,60037.5,613295452
BEIS,Met Office,2023-02-16,06 ACCOMMODATION,PROGRAMMES,BUSINESS SUPPORT CENTRE LTD,476579,61.31,927365208
BEIS,Met Office,2023-02-14,11 SERVICES,PROGRAMMES,Cgi It Uk Limited,476101,1,232615194
BEIS,Met Office,2023-02-14,11 SERVICES,PROGRAMMES,Cgi It Uk Limited,476101,60573,232615194
BEIS,Met Office,2023-02-07,11 SERVICES,PROGRAMMES,Cgi It Uk Limited,476100,77284,232615194
BEIS,Met Office,2023-02-07,11 SERVICES,PROGRAMMES,Cgi It Uk Limited,476099,140092,232615194
BEIS,Met Office,2023-02-01,11 SERVICES,PROGRAMMES,ESCOTT HUNT LTD,475890,190,815727127
BEIS,Met Office,2023-02-10,11 SERVICES,PROGRAMMES,Esri (Uk) Ltd,476108,8967.67,787430791
BEIS,Met Office,2023-02-22,11 SERVICES,PROGRAMMES,FCDO,476378,2996.67,888813560
BEIS,Met Office,2023-02-02,11 SERVICES,PROGRAMMES,FLYFORM LTD,476076,190.1,237333808
BEIS,Met Office,2023-02-02,11 SERVICES,PROGRAMMES,FLYFORM LTD,476055,11940,237333808
BEIS,Met Office,2023-02-02,11 SERVICES,PROGRAMMES,FLYFORM LTD,476052,36939.38,237333808
BEIS,Met Office,2023-02-22,11 SERVICES,PROGRAMMES,FUNDACAO ARTHUR BERNARDES - FUNARBE,476700,67445.63,-
BEIS,Met Office,2023-02-22,11 SERVICES,PROGRAMMES,FUNDACAO ARTHUR BERNARDES - FUNARBE,476022,165461.3,-
BEIS,Met Office,2023-02-14,11 SERVICES,PROGRAMMES,Hr Wallingford Ltd,476414,20000,570039752
BEIS,Met Office,2023-02-01,11 SERVICES,PROGRAMMES,JEREMY BENN ASSOCIATES LIMITED,475947,17310,GB 665300941
BEIS,Met Office,2023-02-01,11 SERVICES,PROGRAMMES,"K F LEWIN CONSULTING, LLC",10911,2997.9,-
BEIS,Met Office,2023-02-15,11 SERVICES,PROGRAMMES,KENYA METEOROLOGICAL DEPARTMENT,476479,1947.18,-
BEIS,Met Office,2023-02-07,11 SERVICES,PROGRAMMES,LAFOSSE ASSOCIATES,476187,5250,GB 360026537
BEIS,Met Office,2023-02-13,11 SERVICES,PROGRAMMES,LAFOSSE ASSOCIATES,476415,10500,GB 360026537
BEIS,Met Office,2023-02-08,11 SERVICES,PROGRAMMES,MADE TECH,476211,91100,938565184
BEIS,Met Office,2023-02-21,11 SERVICES,PROGRAMMES,MAWASEM LTD,476537,-18750,197694731
BEIS,Met Office,2023-02-10,11 SERVICES,PROGRAMMES,MAWASEM LTD,476327,18750,197694731
BEIS,Met Office,2023-02-21,11 SERVICES,PROGRAMMES,MAWASEM LTD,476536,18750,197694731
BEIS,Met Office,2023-02-01,11 SERVICES,PROGRAMMES,Microsoft Ltd,475949,216229.15,724594615
BEIS,Met Office,2023-02-27,11 SERVICES,PROGRAMMES,Microsoft Ltd,476773,313329.12,724594615
BEIS,Met Office,2023-02-08,08 SOFTWARE LICENCES,PROGRAMMES,PTC Inc,10934,1210.78,-
BEIS,Met Office,2023-02-22,11 SERVICES,PROGRAMMES,ROBIN�S TRADING COMPANY LTD,476675,12450,384909158
BEIS,Met Office,2023-02-09,11 SERVICES,PROGRAMMES,ROWE IT LTD,476264,12750,924964394
BEIS,Met Office,2023-02-09,11 SERVICES,PROGRAMMES,ROWE IT LTD,476262,24831.25,924964394
BEIS,Met Office,2023-02-09,11 SERVICES,PROGRAMMES,ROWE IT LTD,476265,123206.25,924964394
BEIS,Met Office,2023-02-09,11 SERVICES,PROGRAMMES,ROWE IT LTD,476263,160746.25,924964394
BEIS,Met Office,2023-02-16,11 SERVICES,PROGRAMMES,SCIENCE & TECHNOLOGY FACILITIES COUNCIL,476528,12500,287461957
BEIS,Met Office,2023-02-06,11 SERVICES,PROGRAMMES,UK CENTRE FOR ECOLOGY & HYDROLOGY (UKCEH),474469,44961.6,336940192
BEIS,Met Office,2023-02-16,11 SERVICES,PROGRAMMES,University of Edinburgh,476580,22000,592950700
BEIS,Met Office,2023-02-09,11 SERVICES,PROGRAMMES,University Of Exeter,476242,2421.76,142047795
BEIS,Met Office,2023-02-10,11 SERVICES,PROGRAMMES,University Of Leeds,475591,-43355.02,613451470
BEIS,Met Office,2023-02-07,11 SERVICES,PROGRAMMES,University Of Reading,476241,-74956.18,200012659
BEIS,Met Office,2023-02-17,11 SERVICES,PROGRAMMES,University Of Reading,475695,17802.19,200012659
BEIS,Met Office,2023-02-17,11 SERVICES,PROGRAMMES,University Of Reading,475695,32579.61,200012659
BEIS,Met Office,2023-02-06,11 SERVICES,PROGRAMMES,WESTHILL KNOWLEDGE LIMITED,476026,12180,128166218
BEIS,Met Office,2023-02-13,13 MISCELLANEOUS,SCIENCE,AB MULTIMEDIA LTD,476454,60,849333502
BEIS,Met Office,2023-02-09,13 MISCELLANEOUS,SCIENCE,AB MULTIMEDIA LTD,476312,550,849333502
BEIS,Met Office,2023-02-09,13 MISCELLANEOUS,SCIENCE,AB MULTIMEDIA LTD,476308,725,849333502
BEIS,Met Office,2023-02-01,11 SERVICES,SCIENCE,Bureau Of Meteorology,475722,115.23,-
BEIS,Met Office,2023-02-01,11 SERVICES,SCIENCE,Bureau Of Meteorology,475724,1643.65,-
BEIS,Met Office,2023-02-22,12 INTERNATIONAL,SCIENCE,EUROGOOS AISBL,24608,10573.24,0521.723.012
BEIS,Met Office,2023-02-13,11 SERVICES,SCIENCE,FLIR SYSTEMS  LTD,476369,6230,335104592
BEIS,Met Office,2023-02-23,11 SERVICES,SCIENCE,INCONF LTD.,476722,1850,349373764
BEIS,Met Office,2023-02-08,08 SOFTWARE LICENCES,SCIENCE,PTC Inc,10934,3632.34,-
BEIS,Met Office,2023-02-01,11 SERVICES,SCIENCE,University of Edinburgh,475932,12500,592950700
BEIS,Met Office,2023-02-27,13 MISCELLANEOUS,SCIENCE,University Of Exeter,476582,-1000,142047795
BEIS,Met Office,2023-02-27,13 MISCELLANEOUS,SCIENCE,University Of Exeter,476068,1000,142047795
BEIS,Met Office,2023-02-27,11 SERVICES,SCIENCE,University Of Exeter,476793,3000,142047795
BEIS,Met Office,2023-02-27,11 SERVICES,SCIENCE,University Of Exeter,476793,3750,142047795
BEIS,Met Office,2023-02-27,11 SERVICES,SCIENCE,University Of Exeter,476793,4500,142047795
BEIS,Met Office,2023-02-27,11 SERVICES,SCIENCE,University Of Exeter,476793,4500,142047795
BEIS,Met Office,2023-02-27,11 SERVICES,SCIENCE,University Of Exeter,476793,4500,142047795
BEIS,Met Office,2023-02-27,11 SERVICES,SCIENCE,University Of Exeter,476793,4500,142047795
BEIS,Met Office,2023-02-10,13 MISCELLANEOUS,SCIENCE,University Of Hertfordshire,476329,1000,539959672
BEIS,Met Office,2023-02-10,13 MISCELLANEOUS,SCIENCE,University Of Leeds,476376,0,613451470
BEIS,Met Office,2023-02-16,11 SERVICES,SCIENCE,University Of Leeds,476573,21891.6,613451470
BEIS,Met Office,2023-02-10,13 MISCELLANEOUS,SCIENCE,University Of Leeds,476376,267053.15,613451470
BEIS,Met Office,2023-02-13,11 SERVICES,SCIENCE,University Of Oxford,475021,12500,125506730
BEIS,Met Office,2023-02-23,11 SERVICES,SCIENCE,University Of Reading,476132,12500,200012659
BEIS,Met Office,2023-02-01,11 SERVICES,SCIENCE,University Of Reading,475801,25000,200012659
BEIS,Met Office,2023-02-09,03 STAFF COSTS T&S,SERVICES,AIRPORT CAR RENTALS LTD,476330,320,-
BEIS,Met Office,2023-02-27,11 SERVICES,SERVICES,APPLIED SATELLITE TECHNOLOGY SYSTEMS LTD,476709,16.16,720108683
BEIS,Met Office,2023-02-20,11 SERVICES,SERVICES,APPLIED SATELLITE TECHNOLOGY SYSTEMS LTD,476660,34.23,720108683
BEIS,Met Office,2023-02-20,11 SERVICES,SERVICES,APPLIED SATELLITE TECHNOLOGY SYSTEMS LTD,476664,68.46,720108683
BEIS,Met Office,2023-02-20,11 SERVICES,SERVICES,APPLIED SATELLITE TECHNOLOGY SYSTEMS LTD,476665,68.46,720108683
BEIS,Met Office,2023-02-24,11 SERVICES,SERVICES,APPLIED SATELLITE TECHNOLOGY SYSTEMS LTD,476718,81.09,720108683
BEIS,Met Office,2023-02-24,11 SERVICES,SERVICES,APPLIED SATELLITE TECHNOLOGY SYSTEMS LTD,476720,93.57,720108683
BEIS,Met Office,2023-02-02,13 MISCELLANEOUS,SERVICES,ARTHUR J. GALLAGHER INSURANCE BROKERS LIMITED,475888,15414.56,GB484746209
BEIS,Met Office,2023-02-06,11 SERVICES,SERVICES,Boc Ltd,476056,7775.3,226556555
BEIS,Met Office,2023-02-01,STOCK,SERVICES,Campbell Scientific Ltd,475909,0,428453933
BEIS,Met Office,2023-02-01,11 SERVICES,SERVICES,Campbell Scientific Ltd,475909,50,428453933
BEIS,Met Office,2023-02-01,TRADE CREDITORS,SERVICES,Campbell Scientific Ltd,475909,1872,428453933
BEIS,Met Office,2023-02-13,11 SERVICES,SERVICES,Campbell Scientific Ltd,476210,20600,428453933
BEIS,Met Office,2023-02-14,STOCK,SERVICES,CARTER MANUFACTURING LIMITED,476328,-28.19,750 0259 62
BEIS,Met Office,2023-02-14,11 SERVICES,SERVICES,CARTER MANUFACTURING LIMITED,474916,-9.5,750 0259 62
BEIS,Met Office,2023-02-14,STOCK,SERVICES,CARTER MANUFACTURING LIMITED,474916,0,750 0259 62
BEIS,Met Office,2023-02-14,STOCK,SERVICES,CARTER MANUFACTURING LIMITED,476328,0,750 0259 62
BEIS,Met Office,2023-02-14,11 SERVICES,SERVICES,CARTER MANUFACTURING LIMITED,474916,9.5,750 0259 62
BEIS,Met Office,2023-02-14,STOCK,SERVICES,CARTER MANUFACTURING LIMITED,474916,37.69,750 0259 62
BEIS,Met Office,2023-02-14,TRADE CREDITORS,SERVICES,CARTER MANUFACTURING LIMITED,474916,1767.96,750 0259 62
BEIS,Met Office,2023-02-14,TRADE CREDITORS,SERVICES,CARTER MANUFACTURING LIMITED,476328,5598.54,750 0259 62
BEIS,Met Office,2023-02-09,03 STAFF COSTS T&S,SERVICES,CHARLIE'S TRAVEL LTD,476185,118.27,783848277
BEIS,Met Office,2023-02-09,03 STAFF COSTS T&S,SERVICES,CHARLIE'S TRAVEL LTD,476185,1137.53,783848277
BEIS,Met Office,2023-02-28,13 MISCELLANEOUS,SERVICES,CLIMATOLOGICAL OBSERVERS LINK (COL),476787,45,NOTVATREG
BEIS,Met Office,2023-02-13,11 SERVICES,SERVICES,CLOUDREACH EUROPE LIMITED,476325,7300,978187168
BEIS,Met Office,2023-02-15,08 SOFTWARE LICENCES,SERVICES,COGNIZANT WORLDWIDE LIMITED,476453,9977.25,123382928
BEIS,Met Office,2023-02-15,08 SOFTWARE LICENCES,SERVICES,COGNIZANT WORLDWIDE LIMITED,476460,9977.25,123382928
BEIS,Met Office,2023-02-01,13 MISCELLANEOUS,SERVICES,COLLECTE LOCALISATION SATELLITES (C.L.S.),24516,210.14,FR95338034390
BEIS,Met Office,2023-02-01,11 SERVICES,SERVICES,COLLECTE LOCALISATION SATELLITES (C.L.S.),24517,4929.23,FR95338034390
BEIS,Met Office,2023-02-01,11 SERVICES,SERVICES,COLLECTE LOCALISATION SATELLITES (C.L.S.),24616,9629.92,FR95338034390
BEIS,Met Office,2023-02-08,13 MISCELLANEOUS,SERVICES,COMMUNICATIONS & POWER IND. EUROPE LTD,10825,58325.65,664103850
BEIS,Met Office,2023-02-08,13 MISCELLANEOUS,SERVICES,COMMUNICATIONS & POWER IND. EUROPE LTD,10826,71375.69,664103850
BEIS,Met Office,2023-02-07,03 STAFF COSTS T&S,SERVICES,DBS FINANCE RECEIPTS CTS,476167,4015,888805068
BEIS,Met Office,2023-02-22,12 INTERNATIONAL,SERVICES,Deutscher Wetterdienst,24645,24166.54,-
BEIS,Met Office,2023-02-15,11 SERVICES,SERVICES,DOT SOFTWARE LTD,474613,3360,701022805
BEIS,Met Office,2023-02-23,13 MISCELLANEOUS,SERVICES,EQUINOX INSTRUMENTS LTD,476725,25,865954274
BEIS,Met Office,2023-02-23,10 EQUIPMENT MAINTENANCE,SERVICES,EQUINOX INSTRUMENTS LTD,476725,5934.7,865954274
BEIS,Met Office,2023-02-01,11 SERVICES,SERVICES,ESCOTT HUNT LTD,475890,570,815727127
BEIS,Met Office,2023-02-22,03 STAFF COSTS T&S,SERVICES,FALKLAND ISLAND COMPANY LTD,476736,700,N/A
BEIS,Met Office,2023-02-22,03 STAFF COSTS T&S,SERVICES,FALKLAND ISLAND COMPANY LTD,476737,700,N/A
BEIS,Met Office,2023-02-22,03 STAFF COSTS T&S,SERVICES,FALKLAND ISLAND COMPANY LTD,476738,700,N/A
BEIS,Met Office,2023-02-22,11 SERVICES,SERVICES,GAMMA TELECOM LTD,476422,4626.28,823820344
BEIS,Met Office,2023-02-14,03 STAFF COSTS T&S,SERVICES,HCR LTD,476243,2095,733 7205 46
BEIS,Met Office,2023-02-14,03 STAFF COSTS T&S,SERVICES,HCR LTD,476244,3317.8,733 7205 46
BEIS,Met Office,2023-02-07,03 STAFF COSTS T&S,SERVICES,HITACHI CAPITAL VEHICLE SOLUTIONS,476165,131.83,GB 823 8248 22
BEIS,Met Office,2023-02-08,11 SERVICES,SERVICES,Icelandic Meteorological Office,24515,38614.86,99733
BEIS,Met Office,2023-02-07,13 MISCELLANEOUS,SERVICES,IMAGETEK SYSTEMS LTD,476213,88.06,GB586331424
BEIS,Met Office,2023-02-07,13 MISCELLANEOUS,SERVICES,IMAGETEK SYSTEMS LTD,476213,1610.91,GB586331424
BEIS,Met Office,2023-02-07,INFORMATION TECHNOLOGY,SERVICES,INMARSAT SOLUTIONS (CANADA) INC,476131,44.36,766144223
BEIS,Met Office,2023-02-07,INFORMATION TECHNOLOGY,SERVICES,INMARSAT SOLUTIONS (CANADA) INC,476134,44.36,766144223
BEIS,Met Office,2023-02-07,INFORMATION TECHNOLOGY,SERVICES,INMARSAT SOLUTIONS (CANADA) INC,476135,88.72,766144223
BEIS,Met Office,2023-02-07,INFORMATION TECHNOLOGY,SERVICES,INMARSAT SOLUTIONS (CANADA) INC,476130,2294.8,766144223
BEIS,Met Office,2023-02-22,11 SERVICES,SERVICES,Knmi,24565,9653.72,821693992B01
BEIS,Met Office,2023-02-08,11 SERVICES,SERVICES,MADE TECH,476212,255614.29,938565184
BEIS,Met Office,2023-02-01,07 EQUIPMENT,SERVICES,METOCEAN TELEMATICS LTD,10913,190.23,-
BEIS,Met Office,2023-02-24,10 EQUIPMENT MAINTENANCE,SERVICES,Metspec Ltd,476677,710,738825202
BEIS,Met Office,2023-02-14,13 MISCELLANEOUS,SERVICES,National Oceanography Centre,476413,7000,GB 338 5487 64
BEIS,Met Office,2023-02-08,07 EQUIPMENT,SERVICES,NKE ELECTRONICS,24524,1535.61,FR58538107483
BEIS,Met Office,2023-02-08,07 EQUIPMENT,SERVICES,NKE ELECTRONICS,24524,71841.6,FR58538107483
BEIS,Met Office,2023-02-08,10 EQUIPMENT MAINTENANCE,SERVICES,Npl Management Ltd,476305,2444,207523388
BEIS,Met Office,2023-02-15,11 SERVICES,SERVICES,NSSL GLOBAL LTD,10928,57.28,725151948
BEIS,Met Office,2023-02-15,11 SERVICES,SERVICES,NSSL GLOBAL LTD,10927,73.64,725151948
BEIS,Met Office,2023-02-10,13 MISCELLANEOUS,SERVICES,OCEANROADS LOGISTICS LTD,476356,2183.8,09938230
BEIS,Met Office,2023-02-24,STOCK,SERVICES,PETERS & MAY GLOBAL LOGISTICS LTD,476794,75,995183276
BEIS,Met Office,2023-02-08,08 SOFTWARE LICENCES,SERVICES,PTC Inc,10933,1210.78,-
BEIS,Met Office,2023-02-08,08 SOFTWARE LICENCES,SERVICES,PTC Inc,10934,8475.46,-
BEIS,Met Office,2023-02-21,07 EQUIPMENT,SERVICES,QUASAR MICROWAVE TECHNOLOGY LTD,476658,25,209385203
BEIS,Met Office,2023-02-21,07 EQUIPMENT,SERVICES,QUASAR MICROWAVE TECHNOLOGY LTD,476658,1116.87,209385203
BEIS,Met Office,2023-02-22,10 EQUIPMENT MAINTENANCE,SERVICES,RAYMETRICS S.A. (GREEK ACCOUNT),24656,5962.54,EL999641589
BEIS,Met Office,2023-02-13,13 MISCELLANEOUS,SERVICES,Royal Meteorological Society,476188,963,-
BEIS,Met Office,2023-02-13,11 SERVICES,SERVICES,SOFTWIRE TECHNOLOGY LIMITED,476458,4200,752 1253 57
BEIS,Met Office,2023-02-28,PLANT AND EQUIPMENT,SERVICES,TOYOTA GB,476771,55,GB 679977144
BEIS,Met Office,2023-02-28,PLANT AND EQUIPMENT,SERVICES,TOYOTA GB,476771,290,GB 679977144
BEIS,Met Office,2023-02-28,PLANT AND EQUIPMENT,SERVICES,TOYOTA GB,476771,23554.97,GB 679977144
BEIS,Met Office,2023-02-27,11 SERVICES,SERVICES,UK TELEMATICS LIMITED,476815,73.88,GB763051643
BEIS,Met Office,2023-02-27,11 SERVICES,SERVICES,UK TELEMATICS LIMITED,476816,126.5,GB763051643
BEIS,Met Office,2023-02-22,11 SERVICES,SERVICES,UK TELEMATICS LIMITED,476724,335.52,GB763051643
BEIS,Met Office,2023-02-22,STOCK,SERVICES,VAISALA LTD,24606,0,336100011
BEIS,Met Office,2023-02-22,STOCK,SERVICES,VAISALA LTD,24630,0,336100011
BEIS,Met Office,2023-02-15,07 EQUIPMENT,SERVICES,VAISALA LTD,24653,8660.41,336100011
BEIS,Met Office,2023-02-22,TRADE CREDITORS,SERVICES,VAISALA LTD,24630,14446.98,336100011
BEIS,Met Office,2023-02-22,TRADE CREDITORS,SERVICES,VAISALA LTD,24606,85107.51,336100011
BEIS,Met Office,2023-02-22,11 SERVICES,SERVICES,WT CONSULTANCY (SW) LTD,476485,550,223 4662 25
BEIS,Met Office,2023-02-01,13 MISCELLANEOUS,SERVICES,YOUNG CALIBRATION LIMITED,475965,15,673900720
BEIS,Met Office,2023-02-01,10 EQUIPMENT MAINTENANCE,SERVICES,YOUNG CALIBRATION LIMITED,475965,1875,673900720
BEIS,Met Office,2023-02-13,11 SERVICES,TECHNOLOGY AND CIO,AKAMAI TECHNOLOGIES LTD,476195,4921.28,745091237
BEIS,Met Office,2023-02-13,11 SERVICES,TECHNOLOGY AND CIO,AKAMAI TECHNOLOGIES LTD,476195,25836.75,745091237
BEIS,Met Office,2023-02-22,11 SERVICES,TECHNOLOGY AND CIO,AMAZON WEB SERVICES EMEA SARL,10949,0.81,GB 283644382
BEIS,Met Office,2023-02-15,11 SERVICES,TECHNOLOGY AND CIO,AMAZON WEB SERVICES EMEA SARL,10944,838.07,GB 283644382
BEIS,Met Office,2023-02-15,11 SERVICES,TECHNOLOGY AND CIO,AMAZON WEB SERVICES EMEA SARL,10948,253648.87,GB 283644382
BEIS,Met Office,2023-02-01,11 SERVICES,TECHNOLOGY AND CIO,AMAZON WEB SERVICES INC.,10908,0.54,N/A
BEIS,Met Office,2023-02-01,11 SERVICES,TECHNOLOGY AND CIO,AMAZON WEB SERVICES INC.,10912,21336.62,N/A
BEIS,Met Office,2023-02-09,11 SERVICES,TECHNOLOGY AND CIO,BAE SYSTEMS APPLIED INTELLIGENCE LIMITED,476199,-4250,GB641407169
BEIS,Met Office,2023-02-03,11 SERVICES,TECHNOLOGY AND CIO,BAE SYSTEMS APPLIED INTELLIGENCE LIMITED,476111,290.75,GB641407169
BEIS,Met Office,2023-02-14,11 SERVICES,TECHNOLOGY AND CIO,BAE SYSTEMS APPLIED INTELLIGENCE LIMITED,476428,660,GB641407169
BEIS,Met Office,2023-02-10,11 SERVICES,TECHNOLOGY AND CIO,BAE SYSTEMS APPLIED INTELLIGENCE LIMITED,476268,2814,GB641407169
BEIS,Met Office,2023-02-10,11 SERVICES,TECHNOLOGY AND CIO,BAE SYSTEMS APPLIED INTELLIGENCE LIMITED,476273,4690,GB641407169
BEIS,Met Office,2023-02-10,11 SERVICES,TECHNOLOGY AND CIO,BAE SYSTEMS APPLIED INTELLIGENCE LIMITED,476352,6566,GB641407169
BEIS,Met Office,2023-02-09,11 SERVICES,TECHNOLOGY AND CIO,BAE SYSTEMS APPLIED INTELLIGENCE LIMITED,476200,6800,GB641407169
BEIS,Met Office,2023-02-03,11 SERVICES,TECHNOLOGY AND CIO,BAE SYSTEMS APPLIED INTELLIGENCE LIMITED,476110,7260,GB641407169
BEIS,Met Office,2023-02-03,11 SERVICES,TECHNOLOGY AND CIO,BAE SYSTEMS APPLIED INTELLIGENCE LIMITED,476114,7574,GB641407169
BEIS,Met Office,2023-02-03,11 SERVICES,TECHNOLOGY AND CIO,BAE SYSTEMS APPLIED INTELLIGENCE LIMITED,476113,7875,GB641407169
BEIS,Met Office,2023-02-09,11 SERVICES,TECHNOLOGY AND CIO,BAE SYSTEMS APPLIED INTELLIGENCE LIMITED,476207,8100,GB641407169
BEIS,Met Office,2023-02-10,11 SERVICES,TECHNOLOGY AND CIO,BAE SYSTEMS APPLIED INTELLIGENCE LIMITED,476345,8115,GB641407169
BEIS,Met Office,2023-02-09,11 SERVICES,TECHNOLOGY AND CIO,BAE SYSTEMS APPLIED INTELLIGENCE LIMITED,476202,8550,GB641407169
BEIS,Met Office,2023-02-09,11 SERVICES,TECHNOLOGY AND CIO,BAE SYSTEMS APPLIED INTELLIGENCE LIMITED,476203,8550,GB641407169
BEIS,Met Office,2023-02-10,11 SERVICES,TECHNOLOGY AND CIO,BAE SYSTEMS APPLIED INTELLIGENCE LIMITED,476343,8550,GB641407169
BEIS,Met Office,2023-02-09,11 SERVICES,TECHNOLOGY AND CIO,BAE SYSTEMS APPLIED INTELLIGENCE LIMITED,476205,9738,GB641407169
BEIS,Met Office,2023-02-10,11 SERVICES,TECHNOLOGY AND CIO,BAE SYSTEMS APPLIED INTELLIGENCE LIMITED,476344,9738,GB641407169
BEIS,Met Office,2023-02-09,11 SERVICES,TECHNOLOGY AND CIO,BAE SYSTEMS APPLIED INTELLIGENCE LIMITED,476204,10279,GB641407169
BEIS,Met Office,2023-02-10,11 SERVICES,TECHNOLOGY AND CIO,BAE SYSTEMS APPLIED INTELLIGENCE LIMITED,476341,10890,GB641407169
BEIS,Met Office,2023-02-09,11 SERVICES,TECHNOLOGY AND CIO,BAE SYSTEMS APPLIED INTELLIGENCE LIMITED,476198,11220,GB641407169
BEIS,Met Office,2023-02-10,11 SERVICES,TECHNOLOGY AND CIO,BAE SYSTEMS APPLIED INTELLIGENCE LIMITED,476342,11632.5,GB641407169
BEIS,Met Office,2023-02-09,11 SERVICES,TECHNOLOGY AND CIO,BAE SYSTEMS APPLIED INTELLIGENCE LIMITED,476196,11879.88,GB641407169
BEIS,Met Office,2023-02-03,11 SERVICES,TECHNOLOGY AND CIO,BAE SYSTEMS APPLIED INTELLIGENCE LIMITED,476115,11880,GB641407169
BEIS,Met Office,2023-02-09,11 SERVICES,TECHNOLOGY AND CIO,BAE SYSTEMS APPLIED INTELLIGENCE LIMITED,476206,11880,GB641407169
BEIS,Met Office,2023-02-03,11 SERVICES,TECHNOLOGY AND CIO,BAE SYSTEMS APPLIED INTELLIGENCE LIMITED,476112,12210,GB641407169
BEIS,Met Office,2023-02-03,11 SERVICES,TECHNOLOGY AND CIO,BAE SYSTEMS APPLIED INTELLIGENCE LIMITED,476116,12375,GB641407169
BEIS,Met Office,2023-02-03,11 SERVICES,TECHNOLOGY AND CIO,BAE SYSTEMS APPLIED INTELLIGENCE LIMITED,476120,12540,GB641407169
BEIS,Met Office,2023-02-09,11 SERVICES,TECHNOLOGY AND CIO,BAE SYSTEMS APPLIED INTELLIGENCE LIMITED,476197,12540,GB641407169
BEIS,Met Office,2023-02-10,11 SERVICES,TECHNOLOGY AND CIO,BAE SYSTEMS APPLIED INTELLIGENCE LIMITED,476274,14070,GB641407169
BEIS,Met Office,2023-02-10,11 SERVICES,TECHNOLOGY AND CIO,BAE SYSTEMS APPLIED INTELLIGENCE LIMITED,476347,14304.5,GB641407169
BEIS,Met Office,2023-02-10,11 SERVICES,TECHNOLOGY AND CIO,BAE SYSTEMS APPLIED INTELLIGENCE LIMITED,476269,14539,GB641407169
BEIS,Met Office,2023-02-13,11 SERVICES,TECHNOLOGY AND CIO,BAE SYSTEMS APPLIED INTELLIGENCE LIMITED,476271,15946,GB641407169
BEIS,Met Office,2023-02-10,11 SERVICES,TECHNOLOGY AND CIO,BAE SYSTEMS APPLIED INTELLIGENCE LIMITED,476270,16150,GB641407169
BEIS,Met Office,2023-02-10,11 SERVICES,TECHNOLOGY AND CIO,BAE SYSTEMS APPLIED INTELLIGENCE LIMITED,476349,16150,GB641407169
BEIS,Met Office,2023-02-10,11 SERVICES,TECHNOLOGY AND CIO,BAE SYSTEMS APPLIED INTELLIGENCE LIMITED,476272,17822,GB641407169
BEIS,Met Office,2023-02-14,11 SERVICES,TECHNOLOGY AND CIO,BAE SYSTEMS APPLIED INTELLIGENCE LIMITED,476337,17822,GB641407169
BEIS,Met Office,2023-02-10,11 SERVICES,TECHNOLOGY AND CIO,BAE SYSTEMS APPLIED INTELLIGENCE LIMITED,476346,17822,GB641407169
BEIS,Met Office,2023-02-13,11 SERVICES,TECHNOLOGY AND CIO,BAE SYSTEMS APPLIED INTELLIGENCE LIMITED,476350,17822,GB641407169
BEIS,Met Office,2023-02-10,11 SERVICES,TECHNOLOGY AND CIO,BAE SYSTEMS APPLIED INTELLIGENCE LIMITED,476275,18759.93,GB641407169
BEIS,Met Office,2023-02-10,11 SERVICES,TECHNOLOGY AND CIO,BAE SYSTEMS APPLIED INTELLIGENCE LIMITED,476276,20352.5,GB641407169
BEIS,Met Office,2023-02-02,08 SOFTWARE LICENCES,TECHNOLOGY AND CIO,BMC SOFTWARE DISTRIBUTION B.V.,476027,7556.77,-
BEIS,Met Office,2023-02-22,08 SOFTWARE LICENCES,TECHNOLOGY AND CIO,CLEARVISION (CM) LIMITED,476656,24967.8,881364801
BEIS,Met Office,2023-02-16,11 SERVICES,TECHNOLOGY AND CIO,CLOUDREACH EUROPE LIMITED,476574,3850.15,978187168
BEIS,Met Office,2023-02-13,11 SERVICES,TECHNOLOGY AND CIO,CLOUDREACH EUROPE LIMITED,476326,5150,978187168
BEIS,Met Office,2023-02-10,11 SERVICES,TECHNOLOGY AND CIO,COMPUTACENTER (UK) LTD,476421,-2938.64,490334648
BEIS,Met Office,2023-02-10,11 SERVICES,TECHNOLOGY AND CIO,COMPUTACENTER (UK) LTD,476420,-2616.5,490334648
BEIS,Met Office,2023-02-20,10 EQUIPMENT MAINTENANCE,TECHNOLOGY AND CIO,COMPUTACENTER (UK) LTD,476615,1,490334648
BEIS,Met Office,2023-02-20,07 EQUIPMENT,TECHNOLOGY AND CIO,COMPUTACENTER (UK) LTD,476654,1,490334648
BEIS,Met Office,2023-02-14,07 EQUIPMENT,TECHNOLOGY AND CIO,COMPUTACENTER (UK) LTD,476418,678.67,490334648
BEIS,Met Office,2023-02-10,10 EQUIPMENT MAINTENANCE,TECHNOLOGY AND CIO,COMPUTACENTER (UK) LTD,476266,691.02,490334648
BEIS,Met Office,2023-02-20,10 EQUIPMENT MAINTENANCE,TECHNOLOGY AND CIO,COMPUTACENTER (UK) LTD,476654,704.76,490334648
BEIS,Met Office,2023-02-10,11 SERVICES,TECHNOLOGY AND CIO,COMPUTACENTER (UK) LTD,476334,2616.5,490334648
BEIS,Met Office,2023-02-10,11 SERVICES,TECHNOLOGY AND CIO,COMPUTACENTER (UK) LTD,476335,2938.64,490334648
BEIS,Met Office,2023-02-28,10 EQUIPMENT MAINTENANCE,TECHNOLOGY AND CIO,COMPUTACENTER (UK) LTD,476860,3033.54,490334648
BEIS,Met Office,2023-02-20,07 EQUIPMENT,TECHNOLOGY AND CIO,COMPUTACENTER (UK) LTD,476615,4211.45,490334648
BEIS,Met Office,2023-02-06,08 SOFTWARE LICENCES,TECHNOLOGY AND CIO,COMPUTACENTER (UK) LTD,476148,20796.9,490334648
BEIS,Met Office,2023-02-10,10 EQUIPMENT MAINTENANCE,TECHNOLOGY AND CIO,COMPUTACENTER (UK) LTD,476267,51792.32,490334648
BEIS,Met Office,2023-02-02,11 SERVICES,TECHNOLOGY AND CIO,FLYFORM LTD,476054,13930,237333808
BEIS,Met Office,2023-02-03,08 SOFTWARE LICENCES,TECHNOLOGY AND CIO,GOOGLE IRELAND LTD,476104,48.8,6388047V
BEIS,Met Office,2023-02-08,08 SOFTWARE LICENCES,TECHNOLOGY AND CIO,HUT 6 SECURITY LIMITED,476260,528,277 2052 03
BEIS,Met Office,2023-02-08,08 SOFTWARE LICENCES,TECHNOLOGY AND CIO,"IBL SOFTWARE ENGINEERING, SPOL S.R.O.",475545,8099.92,SK2020241883
BEIS,Met Office,2023-02-08,08 SOFTWARE LICENCES,TECHNOLOGY AND CIO,"IBL SOFTWARE ENGINEERING, SPOL S.R.O.",475545,31207.05,SK2020241883
BEIS,Met Office,2023-02-03,08 SOFTWARE LICENCES,TECHNOLOGY AND CIO,Ibm United Kingdom Ltd,476107,7395.5,107328000
BEIS,Met Office,2023-02-02,08 SOFTWARE LICENCES,TECHNOLOGY AND CIO,Ibm United Kingdom Ltd,476023,10706,107328000
BEIS,Met Office,2023-02-13,11 SERVICES,TECHNOLOGY AND CIO,Ibm United Kingdom Ltd,476106,13440.5,107328000
BEIS,Met Office,2023-02-03,07 EQUIPMENT,TECHNOLOGY AND CIO,INSURGO MEDIA SERVICES LTD,476025,125000,979682734
BEIS,Met Office,2023-02-14,11 SERVICES,TECHNOLOGY AND CIO,LAFOSSE ASSOCIATES,476416,14175,GB 360026537
BEIS,Met Office,2023-02-02,08 SOFTWARE LICENCES,TECHNOLOGY AND CIO,LNRS DATA SERVICES LTD,476029,17988.75,730859520
BEIS,Met Office,2023-02-10,11 SERVICES,TECHNOLOGY AND CIO,NORBECK LTD,476320,574.2,543334559
BEIS,Met Office,2023-02-09,10 EQUIPMENT MAINTENANCE,TECHNOLOGY AND CIO,ORACLE CORPORATION UK LTD,476375,5735.63,391313073
BEIS,Met Office,2023-02-16,10 EQUIPMENT MAINTENANCE,TECHNOLOGY AND CIO,ORACLE CORPORATION UK LTD,476572,29010.86,391313073
BEIS,Met Office,2023-02-02,08 SOFTWARE LICENCES,TECHNOLOGY AND CIO,PRESENTATION CARTOGRAPHY LTD,476019,2014.48,-
BEIS,Met Office,2023-02-02,08 SOFTWARE LICENCES,TECHNOLOGY AND CIO,PRESENTATION CARTOGRAPHY LTD,476020,7091.76,-
BEIS,Met Office,2023-02-02,08 SOFTWARE LICENCES,TECHNOLOGY AND CIO,PRESENTATION CARTOGRAPHY LTD,476020,7520.24,-
BEIS,Met Office,2023-02-02,08 SOFTWARE LICENCES,TECHNOLOGY AND CIO,PRESENTATION CARTOGRAPHY LTD,476019,8353.28,-
BEIS,Met Office,2023-02-02,08 SOFTWARE LICENCES,TECHNOLOGY AND CIO,PRESENTATION CARTOGRAPHY LTD,476020,40824.16,-
BEIS,Met Office,2023-02-28,08 SOFTWARE LICENCES,TECHNOLOGY AND CIO,PROSPERON NETWORKS LTD,476809,4210.26,889545649
BEIS,Met Office,2023-02-14,11 SERVICES,TECHNOLOGY AND CIO,QA LTD,476261,1500,864455303
BEIS,Met Office,2023-02-22,11 SERVICES,TECHNOLOGY AND CIO,QA LTD,476616,3400,864455303
BEIS,Met Office,2023-02-24,11 SERVICES,TECHNOLOGY AND CIO,QA LTD,476707,33120,864455303
BEIS,Met Office,2023-02-13,08 SOFTWARE LICENCES,TECHNOLOGY AND CIO,QUEST SOFTWARE INTERNATIONAL LTD,476486,2293.83,581955404
BEIS,Met Office,2023-02-03,08 SOFTWARE LICENCES,TECHNOLOGY AND CIO,QUEST SOFTWARE INTERNATIONAL LTD,476109,24108.7,581955404
BEIS,Met Office,2023-02-01,11 SERVICES,TECHNOLOGY AND CIO,RED HAT UK LTD,471840,2678,875232905
BEIS,Met Office,2023-02-14,11 SERVICES,TECHNOLOGY AND CIO,ROBUSTMIND MENTAL FITNESS LTD,476496,160,-
BEIS,Met Office,2023-02-06,11 SERVICES,TECHNOLOGY AND CIO,SKILLTEC LIMITED,472675,4300,909833105
BEIS,Met Office,2023-02-14,08 SOFTWARE LICENCES,TECHNOLOGY AND CIO,SPECIALIST COMPUTER CENTRES,476456,234.6,313651680
BEIS,Met Office,2023-02-02,07 EQUIPMENT,TECHNOLOGY AND CIO,SPECIALIST COMPUTER CENTRES,476024,1202.69,313651680
BEIS,Met Office,2023-02-14,08 SOFTWARE LICENCES,TECHNOLOGY AND CIO,SPECIALIST COMPUTER CENTRES,476455,1575,313651680
BEIS,Met Office,2023-02-06,11 SERVICES,TECHNOLOGY AND CIO,SSE CONTRACTING LTD,476062,10912.87,382894546
BEIS,Met Office,2023-02-02,11 SERVICES,TECHNOLOGY AND CIO,WIREFAST LTD,476071,188.58,749536001
BEIS,Met Office,2023-02-02,11 SERVICES,TECHNOLOGY AND CIO,WIREFAST LTD,476070,1574.67,749536001
BEIS,Met Office,2023-02-02,11 SERVICES,TECHNOLOGY AND CIO,WIREFAST LTD,476072,1796.34,749536001
BEIS,Met Office,2023-02-02,11 SERVICES,TECHNOLOGY AND CIO,WT CONSULTANCY (SW) LTD,476061,350,223 4662 25
